Workbook

Sheet Calculation BELT
A1: Linear unit WM | D1: Sizing & selection | I1: 2015 03 09 JHj Release 0
A2: WM60Z WM80Z | X2: max stroke | Z2: add length C | AA2: Min dist carriage LA | AB2: Fx max | AC2: Fy | AD2: Fz | AE2: Mx | AF2: My | AG2: Mz | AH2: Frd | AI2: Mta | AJ2: Speed | AK2: Acc | AM2: Carriage weight | AN2: Weight | AP2: carriage | AQ2: Distance between | AR2: ball guide carriage | AT2: preload | AU2: Cz dyn | AV2: Cy dyn | AW2: Diameter drive pulley | AX2: pre-tension belt | AY2: C dyn Ball bearing drive shaft | AZ2: C dyn Ball bearing tension | BA2: Idle torque at 150 rpm | BB2: ½ speed | BC2: full speed | BD2: Belt weight kg/m | BE2: Pulley width drive | BF2: Pulley width tension | BG2: VWZ | BL2: #
A3: Customer | AN3: 0 stroke | AO3: 100 mm | AP3: friction N | AQ3: Lx | AR3: Ly | AT3: each carriage | AU3: each carriage | BA3: Nm | BB3: Nm | BC3: Nm | BG3: kgm² | BH3: kgm²/m
A4: Project | M4: 2 | N4: =VLOOKUP(M4,M5:N6,2) -> WM80Z | O4: =VLOOKUP(M4,M5:O6,3) -> WM08Z170 | Q4: =IF(P16=0,8,IF(AND(M4=1,Q16),1,IF(AND(M4=1,Q16=5),2,M4+Q16))) -> 4 | R4: =VLOOKUP($Q$4,$Q$5:R12,R13) -> WM80Z- S | S4: =VLOOKUP($Q$4,$Q$5:S12,S13) -> S = Single short carriage | U4: =VLOOKUP($Q$4,$Q$5:U12,U13) -> 0 | V4: =VLOOKUP($Q$4,$Q$5:V12,V13) -> S | X4: =VLOOKUP($Q$4,$Q$5:X12,X13) -> 5500 | Y4: =VLOOKUP($Q$4,$Q$5:Y12,Y13) -> 0 | Z4: =VLOOKUP($Q$4,$Q$5:Z12,Z13) -> 490 | AA4: =VLOOKUP($Q$4,$Q$5:AA12,AA13) -> 0 | AB4: =VLOOKUP($Q$4,$Q$5:AB12,AB13) -> 1230 | AC4: =VLOOKUP($Q$4,$Q$5:AC12,AC13) -> 2100 | AD4: =VLOOKUP($Q$4,$Q$5:AD12,AD13) -> 2100 | AE4: =VLOOKUP($Q$4,$Q$5:AE12,AE13) -> 68 | AF4: =VLOOKUP($Q$4,$Q$5:AF12,AF13) -> 135 | AG4: =VLOOKUP($Q$4,$Q$5:AG12,AG13) -> 135 | AH4: =VLOOKUP($Q$4,$Q$5:AH12,AH13) -> 600 | AI4: =VLOOKUP($Q$4,$Q$5:AI12,AI13) -> 40 | AJ4: =VLOOKUP($Q$4,$Q$5:AJ12,AJ13) -> 5 | AK4: =VLOOKUP($Q$4,$Q$5:AK12,AK13) -> 20 | AL4: =VLOOKUP($Q$4,$Q$5:AL12,AL13) -> 0 | AM4: =VLOOKUP($Q$4,$Q$5:AM12,AM13) -> 2.1 | AN4: =VLOOKUP($Q$4,$Q$5:AN12,AN13) -> 9.2 | AO4: =VLOOKUP($Q$4,$Q$5:AO12,AO13) -> 0.8 | AP4: =VLOOKUP($Q$4,$Q$5:AP12,AP13) -> 22.5 | AQ4: =VLOOKUP($Q$4,$Q$5:AQ12,AQ13) -> 0 | AR4: =VLOOKUP($Q$4,$Q$5:AR12,AR13) -> 48.75 | AS4: =VLOOKUP($Q$4,$Q$5:AS12,AS13) -> 0 | AT4: =VLOOKUP($Q$4,$Q$5:AT12,AT13) -> 400 | AU4: =VLOOKUP($Q$4,$Q$5:AU12,AU13) -> 35838 | AV4: =VLOOKUP($Q$4,$Q$5:AV12,AV13) -> 37446 | AW4: =VLOOKUP($Q$4,$Q$5:AW12,AW13) -> 54.11268065 | AX4: =VLOOKUP($Q$4,$Q$5:AX12,AX13) -> 1470 | AY4: =VLOOKUP($Q$4,$Q$5:AY12,AY13) -> 13800 | AZ4: =VLOOKUP($Q$4,$Q$5:AZ12,AZ13) -> 8060 | BA4: =VLOOKUP($Q$4,$Q$5:BA12,BA13) -> 4 | BB4: =VLOOKUP($Q$4,$Q$5:BB12,BB13) -> 5.4 | BC4: =VLOOKUP($Q$4,$Q$5:BC12,BC13) -> 6.2 | BD4: =VLOOKUP($Q$4,$Q$5:BD12,BD13) -> 0.14 | BE4: =VLOOKUP($Q$4,$Q$5:BE12,BE13) -> 75 | BF4: =VLOOKUP($Q$4,$Q$5:BF12,BF13) -> 30 | BG4: =VLOOKUP($Q$4,$Q$5:BG12,BG13) -> 0.0024 | BH4: =VLOOKUP($Q$4,$Q$5:BH12,BH13) -> 0.003 | BI4: =VLOOKUP($Q$4,$Q$5:BI12,BI13) -> 0
A5: Date | E5: Ref: | F5: xxx | M5: 1 | N5: WM60Z | O5: WM06Z120 | Q5: 1 | R5: WM60Z - S | S5: S = Single short carriage | V5: S | X5: 4,000 | Z5: 420 | AA5: 0 | AB5: =IF(C52<2.5,850-C52/2.5*300,550) -> 670 | AC5: 1400 | AD5: =AC5 -> 1400 | AE5: 25 | AF5: 50 | AG5: =AF5 -> 50 | AH5: 150 | AI5: 17 | AJ5: 2.5 | AK5: 20 | AM5: 1.25 | AN5: 4.3 | AO5: 0.45 | AP5: 18 | AQ5: 0 | AR5: 35 | AT5: 300 | AU5: =2*11934 -> 23868 | AV5: =2*12964 -> 25928 | AW5: =120/PI() -> 38.19718634 | AX5: 850 | AY5: 7280 | AZ5: 4230 | BA5: 1.6 | BB5: 2.5 | BC5: 3 | BD5: 0.074 | BE5: 55 | BF5: 25 | BG5: 0.00024 | BH5: 0.0008
M6: 2 | N6: WM80Z | O6: WM08Z170 | Q6: 2 | R6: WM60Z- Y | S6: Y = Double short carriages | V6: Y | X6: 4,000 | Z6: =G18+Z5 -> 920 | AA6: 255 | AB6: =$AB$5 -> 670 | AC6: 2800 | AD6: =AC6 -> 2800 | AE6: 50 | AF6: =1.4*G18 -> 700 | AG6: =AF6 -> 700 | AH6: 150 | AI6: 17 | AJ6: 2.5 | AK6: 20 | AM6: 2.5 | AN6: 4.3 | AO6: 0.45 | AP6: 36 | AQ6: =G18 -> 500 | AR6: 35 | AT6: 300 | AU6: =2*11934 -> 23868 | AV6: =2*12964 -> 25928 | AW6: =120/PI() -> 38.19718634 | AX6: 850 | AY6: 7280 | AZ6: 4230 | BA6: =0.3+BA5 -> 1.9 | BB6: =0.4+BB5 -> 2.9 | BC6: =0.5+BC5 -> 3.5 | BD6: 0.074 | BE6: 55 | BF6: 25 | BG6: 0.00024 | BH6: 0.0008
A7: Linear drive unit: | Q7: 3 | R7: WM80Z- N | S7: N = Single standard carriage | V7: N | X7: 5,400 | Z7: 590 | AA7: 0 | AB7: =IF(C52<2.5,1470-C52/2.5*400,1070) -> 1230 | AC7: 3000 | AD7: 3000 | AE7: 150 | AF7: 300 | AG7: 300 | AH7: 600 | AI7: 40 | AJ7: 5 | AK7: 20 | AM7: 3.4 | AN7: 11.2 | AO7: 0.8 | AP7: 25 | AQ7: 154 | AR7: 48.75 | AT7: 600 | AU7: =4*13739 -> 54956 | AV7: =4*14356 -> 57424 | AW7: =170/PI() -> 54.11268065 | AX7: 1470 | AY7: 13800 | AZ7: 8060 | BA7: 6.5 | BB7: 7.7 | BC7: 9.3 | BD7: 0.14 | BE7: 75 | BF7: 30 | BG7: 0.0024 | BH7: 0.003
B8: Size | Q8: 4 | R8: WM80Z- S | S8: S = Single short carriage | V8: S | X8: 5,500 | Z8: 490 | AA8: 0 | AB8: =$AB$7 -> 1230 | AC8: 2100 | AD8: 2100 | AE8: 68 | AF8: 135 | AG8: 135 | AH8: 600 | AI8: 40 | AJ8: 5 | AK8: 20 | AM8: 2.1 | AN8: 9.2 | AO8: 0.8 | AP8: 22.5 | AQ8: 0 | AR8: 48.75 | AT8: 400 | AU8: =2*17919 -> 35838 | AV8: =2*18723 -> 37446 | AW8: =170/PI() -> 54.11268065 | AX8: 1470 | AY8: 13800 | AZ8: 8060 | BA8: 4 | BB8: 5.4 | BC8: 6.2 | BD8: 0.14 | BE8: 75 | BF8: 30 | BG8: 0.0024 | BH8: 0.003
Q9: 5 | R9: WM80Z- L | S9: L = Single long carriage | V9: L | X9: 5,400 | Z9: 760 | AA9: 0 | AB9: =$AB$7 -> 1230 | AC9: 3000 | AD9: 3000 | AE9: 150 | AF9: 750 | AG9: 750 | AH9: 600 | AI9: 40 | AJ9: 5 | AK9: 20 | AM9: 5.1 | AN9: 11.2 | AO9: 0.8 | AP9: 25 | AQ9: =170+154 -> 324 | AR9: 48.75 | AT9: 600 | AU9: =4*13739 -> 54956 | AV9: =4*14356 -> 57424 | AW9: 54.11268065 | AX9: 1470 | AY9: 13800 | AZ9: 8060 | BA9: 6.5 | BB9: 7.7 | BC9: 9.3 | BD9: 0.14 | BE9: 75 | BF9: 30 | BG9: 0.0024 | BH9: 0.003
B10: Guidings | C10: Ball guides | Q10: 6 | R10: WM80Z- Z | S10: Z = Double standard carriages | V10: Z | X10: 5,400 | Z10: =G18+Z7 -> 1090 | AA10: 360 | AB10: 1230 | AC10: 6000 | AD10: 6000 | AE10: 300 | AF10: =3*G18 -> 1500 | AG10: 1500 | AH10: 600 | AI10: 40 | AJ10: 5 | AK10: 20 | AM10: 6.8 | AN10: 11.2 | AO10: 0.8 | AP10: 50 | AQ10: =G18 -> 500 | AR10: 48.75 | AT10: 600 | AU10: =4*13739 -> 54956 | AV10: =4*14356 -> 57424 | AW10: 54.11268065 | AX10: 1470 | AY10: 13800 | AZ10: 8060 | BA10: =BA7+0.6 -> 7.1 | BB10: =BB7+0.7 -> 8.4 | BC10: =BC7+0.8 -> 10.1 | BD10: 0.14 | BE10: 75 | BF10: 30 | BG10: 0.0024 | BH10: 0.003
B11: Drive mechanism | C11: Belt drive | Q11: 7 | R11: WM80Z- Y | S11: Y = Double short carriages | V11: Y | X11: 5,500 | Z11: =G18+Z8 -> 990 | AA11: 280 | AB11: 1230 | AC11: 4200 | AD11: 4200 | AE11: 136 | AF11: =2.1*G18 -> 1050 | AG11: 1050 | AH11: 600 | AI11: 40 | AJ11: 5 | AK11: 20 | AM11: 4.2 | AN11: 9.2 | AO11: 0.8 | AP11: 45 | AQ11: =G18 -> 500 | AR11: 48.75 | AT11: 400 | AU11: =2*17919 -> 35838 | AV11: =2*18723 -> 37446 | AW11: 54.11268065 | AX11: 1470 | AY11: 13800 | AZ11: 8060 | BA11: =BA8+0.6 -> 4.6 | BB11: =BB8+0.7 -> 6.1 | BC11: =BC8+0.8 -> 7 | BD11: 0.14 | BE11: 75 | BF11: 30 | BG11: 0.0024 | BH11: 0.003
B12: Type of belt | C12: =IF(M4=1," 20 ATL 5"," 25 AT 10") -> 25 AT 10 | Q12: 8
Q13: 1 | R13: 2 | S13: 3 | T13: 4 | U13: 5 | V13: 6 | W13: 7 | X13: 8 | Y13: 9 | Z13: 10 | AA13: 11 | AB13: 12 | AC13: 13 | AD13: 14 | AE13: 15 | AF13: 16 | AG13: 17 | AH13: 18 | AI13: 19 | AJ13: 20 | AK13: 21 | AL13: 22 | AM13: 23 | AN13: 24 | AO13: 25 | AP13: 26 | AQ13: 27 | AR13: 28 | AS13: 29 | AT13: 30 | AU13: 31 | AV13: 32 | AW13: 33 | AX13: 34 | AY13: 35 | AZ13: 36 | BA13: 37 | BB13: 38 | BC13: 39 | BD13: 40 | BE13: 41 | BF13: 42 | BG13: 43 | BH13: 44 | BI13: 45
B14: Move per rev | C14: =IF(M4=1,120,170) -> 170 | D14: mm
B15: Repeatability | C15: 0.05 | D15: mm | F15: =IF(AND($K$22=3,$K$12<$K$23),"Min Lc ="," ") ->  | G15: =IF(AND($K$22=3,$K$12<$K$23),$K$23," ") ->  | H15: =IF(AND($K$22=3,$K$12<$K$23),"mm"," ") ->  | S15: Carriages/unit
P16: =IF(AND(M4=1,OR(Q16=1,Q16=3,Q16=4)),0,1) -> 1 | Q16: 2 | R16: =VLOOKUP(Q16,Q17:R21,2) -> S = Single short carriage | S16: =IF(Q16>3,2,1) -> 1 | U16: =AQ4 -> 0 | V16: =AM4 -> 2.1 | W16: =V4 -> S | X16: 1 | Y16: =IF(X16=1,1,0) -> 1 | AW16: 1 | AX16: WM60Z - S | AY16: S = Single short carriage
Q17: 1 | R17: =IF(M4=1," xxx","N = Single standard carriage") -> N = Single standard carriage | X17: 1 | Y17: Yes | AW17: 2 | AX17: WM60Z- Y | AY17: Y = Double short carriages
B18: Saddle | E18: =IF(K22=2,"Not available"," ") ->  | F18: =IF(S16=2,"LA ="," ") ->  | G18: 500 | H18: =IF(Q16>3,"mm"," ") ->  | I18: =IF(AND(S16=2,G18<AA4),"Too short"," ") ->  | Q18: 2 | R18: S = Single short carriage | X18: 2 | Y18: No | AB18: Following assumption is made: each Nm torque in Mz and My will create a friction force of | AK18: =IF(Q4=4,1,1.5) -> 1 | AL18: N for WM60S and WM 80S with single carriage | AW18: 3 | AX18: WM80Z- N | AY18: N = Single standard carriage
B19: Stroke | C19: 2000 | D19: mm | F19: Total length | G19: =C19+Z4 -> 2490 | H19: mm | Q19: 3 | R19: =IF(M4=1," xxx ","L = Single long carriage") -> L = Single long carriage | AB19: For other units, this will be concidered to create a pair of forces in Y or Z direction | AW19: 4 | AX19: WM80Z- S | AY19: S = Single short carriage
C20: =IF(C19>X4,"Longer than standard. Check with plant"," ") ->  | Q20: 4 | R20: =IF(M4=1," xxx","Z = Double standard carriages") -> Z = Double standard carriages | AW20: 5 | AX20: WM80Z- L | AY20: L = Single long carriage
C21: Number of units | Q21: 5 | R21: Y = Double short carriages | AW21: 6 | AX21: WM80Z- Z | AY21: Z = Double standard carriages
A22: =IF(Q23=2,"Distance between linear units"," ") ->  | D22: 800 | AA22: Configuration | AF22: If WM60Z or WM80Z with single short carriage, then Yes = 1 otherwise No = 0 | AW22: 7 | AX22: WM80Z- Y | AY22: Y = Double short carriages
Q23: 1 | R23: units | S23: =Q23-1 -> 0 | T23: 1 | W23: 1 | AA23: =IF(AND(Q23=1,T23=1,W23=1),1,IF(AND(Q23=2,T23=1,W23=1),2,IF(AND(Q23=1,T23=1,W23=2),3,IF(AND(Q23=2,T23=1,W23=2),4,IF(AND(Q23=1,T23=2),5,IF(AND(Q23=2,T23=2),6,"")))))) -> 1 | AF23: =IF(OR(Q4=1,Q4=4),1,0) -> 1
C24: Weight of linear drive unit/-s | D24: =Q23*(AN4+(G19+IF(S16=2,G18,0))/100*AO4+AM4) -> 31.2 | E24: kg | G24: =IF(M35=0," ",IF(C27/2000>#REF!,"OK","Too much")) ->  | Q24: one single unit | T24: 1 | U24: Horizontal | W24: 1 | X24: =IF(T23=1,"Top or downward"," ") -> Top or downward | AA24: =R108 -> Horizontal mounting, single unit, carriage at top
F25: =IF(M35=0," ","Deflection") ->  | Q25: two units in parallel | T25: 2 | U25: Vertical | W25: 2 | X25: =IF(T23=1,"Sideway"," ") -> Sideway
B26: Mounting direction
X27: Friction factor = | Y27: 0.1
Q28: Horizontal mounting, single unit, carriage at top | W28: =S4 -> S = Single short carriage | AH28: Fx per unit | AI28: Total Fx at
Q29: Load torques caused by off center load | W29: at constant | AB29: Max | AH29: during acc | AI29: const. speed
R30: Static | S30: Dynamic | T30: Totally | V30: Friction | W30: speed | Y30: Totally | AB30: allowed | AC30: % of max
Q31: Mx = | R31: =$C$49*10*M52/1000 -> 0 | S31: 0 | T31: =Y16*R31+S31+C46 -> 0 | U31: Nm | V31: =T31/AR4*1000*Y27 -> 0.0 | W31: =V31 -> 0.0 | Y31: Fx = | Z31: =C43+(C49+AM4*S16)*C53+AP4*S16+V39 -> 27 | AA31: N | AB31: =AB4 -> 1230 | AH31: =Z31 -> 27 | AI31: =C43+AP4*S16+W39 -> 23
Q32: My = | R32: =$C$49*10*M51/1000 -> 0 | S32: =C49*C53*M53/1000 -> 0 | T32: =Y16*R32+S32+C47 -> 0 | U32: Nm | V32: =IF(AF23=1,T32*AK18,T32/U16*1000*Y27) -> 0.0 | W32: =IF(AF23=1,(T32-S32)*AK18,(T32-S32)/U16*1000*Y27) -> 0.0 | Y32: Fy = | Z32: =C44 -> 0 | AA32: N | AB32: =AC4 -> 2100 | AC32: =Z32/AB32 -> 0%
Q33: Mz = | R33: 0 | S33: =C49*C53*M52/1000 -> 0 | T33: =Y16*R33+S33+C48 -> 0 | U33: Nm | V33: =IF(AF23=1,T33*AK18,T33/U16*1000*Y27) -> 0.0 | W33: =IF(AF23=1,(T33-S33)*AK18,(T33-S33)/U16*1000*Y27) -> 0.0 | Y33: Fz = | Z33: =C45+C49*10*Y16 -> 0 | AA33: N | AB33: =AD4 -> 2100 | AC33: =Z33/AB33 -> 0%
Y34: Mx = | Z34: =T31 -> 0 | AA34: Nm | AB34: =AE4 -> 68 | AC34: =Z34/AB34 -> 0%
Q35: Fy = | V35: =Z32*Y27 -> 0 | W35: =V35 -> 0 | Y35: My = | Z35: =T32 -> 0 | AA35: Nm | AB35: =AF4 -> 135 | AC35: =Z35/AB35 -> 0%
Q36: Fz = | V36: =Z33*Y27 -> 0 | W36: =V36 -> 0 | Y36: Mz = | Z36: =T33 -> 0 | AA36: Nm | AB36: =AG4 -> 135 | AC36: =Z36/AB36 -> 0%
AB38: Totally | AC38: =SUM(AC32:AC37) -> 0%
U39: Totally | V39: =SUM(V31:V38) -> 0.0 | W39: =SUM(W31:W38) -> 0.0 | X39: N
Q42: Horizontal mounting, 2 units, carriage at top
B43: Fx = | C43: 0 | D43: N | E43: =IF(C43>$AB$4*$Q$23,"Too much"," ") ->  | H43: =IF(T23=2," ","Orientation of carriage") -> Orientation of carriage | Q43: Load torques caused by off center load | AB43: Max
B44: Fy = | C44: 0 | D44: N | E44: =IF(C44>AC4*$Q$23,"Too much"," ") ->  | R44: Static | S44: Dynamic | T44: Totally | V44: Friction | Y44: Totally | AB44: allowed | AC44: % of max
B45: Fz = | C45: 0 | D45: N | E45: =IF(C45>AD4*$Q$23,"Too much"," ") ->  | Q45: Mx = | R45: 0 | S45: 0 | T45: 0 | U45: Nm | V45: 0.0 | W45: 0 | Y45: Fx = | Z45: =C43+T47/D22*1000+(C49+AM4*2)*C53+V53+AP4*2*S16+V46/D22*1000*2 -> 53 | AA45: N | AB45: =2*AB4 -> 2460 | AH45: =Z45*(D22/2+M52)/D22 -> 27 | AI45: =C43+T47/D22*1000+W53+AP4*2*S16+V46/D22*1000*2 -> 45 | CB45: Please note:
B46: Mx = | C46: 0 | D46: Nm | E46: =IF(Q23=2," ",IF(C46>AE4,"Too much"," ")) ->  | Q46: My = | R46: =C49*10*M51/1000 -> 0 | S46: =C49*C53*M53/1000 -> 0 | T46: =Y16*R46+S46+C47 -> 0 | U46: Nm | V46: =IF(AF23=1,AK18*T46,T46/U16*1000*Y27) -> 0.0 | W46: =IF(AF23=1,AK18*(T46-S46),(T46-S46)/U16*1000*Y27) -> 0 | Y46: Fy = | Z46: =C44 -> 0 | AA46: N | AB46: =AC4*1 -> 2100 | AC46: =Z46/AB46 -> 0% | CB46: Fx, Fy, Fz, Mx, My and Mz are external forces and torques and
B47: My = | C47: 0 | D47: Nm | E47: =IF(C47>AF4*$Q$23,"Too much"," ") ->  | Q47: Mz = | R47: 0 | S47: =C49*C53*M52/1000 -> 0 | T47: =Y16*R47+S47+C48 -> 0 | U47: Nm | V47: 0.0 | W47: 0 | Y47: Fz = | Z47: =C45+C49*10*Y16+C46/D22*1000*2 -> 0 | AA47: N | AB47: =AD4*2 -> 4200 | AC47: =Z47/AB47 -> 0% | CB47: are not connected with or caused by "Total mass to move"
B48: Mz = | C48: 0 | D48: Nm | E48: =IF(Q23=2," ",IF(C48>$AG$4,"Too much"," ")) ->  | Y48: Mx = | Z48: =T45 -> 0 | AA48: Nm | AE48: Anser att Mx blir ett kraftpar som ökar Fz
B49: Total mass to move | C49: 0 | D49: kg in location from top of carriage | H49: Lx = | I49: 0 | J49: mm | Q49: Fy = | V49: =C44*Y27 -> 0 | W49: =V49 -> 0 | Y49: My = | Z49: =T46 -> 0 | AA49: Nm | AB49: =AF4*2 -> 270 | AC49: =Z49/AB49 -> 0%
A50: Will this mass be carried by the carriage/carriages? | H50: Ly = | I50: 0 | J50: mm | M50: ABS | Q50: Fz = | V50: =(C49*10*Y16+C45)*Y27 -> 0.0 | W50: =V50 -> 0 | Y50: Mz = | Z50: =T47 -> 0 | AA50: Nm | AE50: Anser att Mz blir ett kraftpar som ökar Fx
H51: Lz = | I51: 0 | J51: mm | M51: =ABS(I49) -> 0
B52: Speed | C52: 1.5 | D52: m/s | E52: =IF(C52>AJ4,"Too high speed"," ") ->  | M52: =ABS(I50) -> 0 | AB52: Totally | AC52: =SUM(AC46:AC51) -> 0%
B53: Acceleration | C53: 2 | D53: m/s² | E53: =IF(C53>40,"Too high acceleration"," ") ->  | M53: =ABS(I51) -> 0 | U53: Totally | V53: =SUM(V45:V52) -> 0.0 | W53: =SUM(W45:W52) -> 0.0 | X53: N
A55: Move profile over | C55: 1800 | D55: mm stroke | F55: =IF(C55>C19,"This is longer than stroke of unit !"," ") ->  | Q55: Horizontal mounting, single unit, carriage sideway
Q56: Load torques caused by off center load | AB56: Max
A57: Time to move one direction | R57: Static | S57: Dynamic | T57: Totally | V57: Friction | Y57: Totally | AB57: allowed | AC57: % of max
C58: =Blad2!C32 -> 1.95 | D58: sec | Q58: Mx = | R58: =C49*10*M53/1000 -> 0 | S58: 0 | T58: =Y16*R58+C46 -> 0 | U58: Nm | V58: =T58/AR4*1000*Y27 -> 0.0 | W58: =V58 -> 0.0 | Y58: Fx = | Z58: =C43+(C49+AM4)*C53+AP4*S16+V66 -> 27 | AA58: N | AB58: =AB4 -> 1230 | AH58: =Z58 -> 27 | AI58: =C43+AP4*S16+W66 -> 23
Q59: My = | R59: 0 | S59: =C49*C53*M53/1000 -> 0 | T59: =S59+C47 -> 0 | U59: Nm | V59: =IF(AF23=1,AK18*T59,T59/U16*1000*Y27) -> 0.0 | W59: =IF(AF23=1,AK18*(T59-S59),(T59-S59)/U16*1000*Y27) -> 0.0 | Y59: Fy = | Z59: =C44+Y16*C49*10 -> 0 | AA59: N | AB59: =AC4 -> 2100 | AC59: =Z59/AB59 -> 0%
A60: =Blad2!A35 ->  | Q60: Mz = | R60: =C49*10*M51/1000 -> 0 | S60: =C49*C53*M52/1000 -> 0 | T60: =Y16*R60+S60+C48 -> 0 | U60: Nm | V60: =IF(AF23=1,AK18*T60,T60/AQ4*1000*Y27) -> 0.0 | W60: =IF(AF23=1,AK18*(T60-S60),(T60-S60)/AQ4*1000*Y27) -> 0.0 | Y60: Fz = | Z60: =C45 -> 0 | AA60: N | AB60: =AD4 -> 2100 | AC60: =Z60/AB60 -> 0%
A61: =Blad2!A36 ->  | C61: =Blad2!C36 ->  | D61: =Blad2!D36 ->  | Y61: Mx = | Z61: =T58 -> 0 | AA61: Nm | AB61: =AE4 -> 68 | AC61: =Z61/AB61 -> 0%
Q62: Fy = | V62: =Z59*Y27 -> 0 | W62: =V62 -> 0 | Y62: My = | Z62: =T59 -> 0 | AA62: Nm | AB62: =AF4 -> 135 | AC62: =Z62/AB62 -> 0%
Q63: Fz = | V63: =C45*Y27 -> 0 | W63: =V63 -> 0 | Y63: Mz = | Z63: =T60 -> 0 | AA63: Nm | AB63: =AG4 -> 135 | AC63: =Z63/AB63 -> 0%
AB65: Totally | AC65: =SUM(AC59:AC64) -> 0%
U66: Totally | V66: =SUM(V58:V65) -> 0.0 | W66: =SUM(W58:W65) -> 0.0 | X66: N
Q68: Horizontal mounting, two units, carriages sideway
Q69: Load torques caused by off center load | AB69: Max
R70: Static | S70: Dynamic | T70: Totally | V70: Friction | Y70: Totally | AB70: allowed | AC70: % of max
A71: =R108 -> Horizontal mounting, single unit, carriage at top | Q71: Mx = | R71: 0 | S71: 0 | T71: 0 | U71: Nm | V71: 0.0 | W71: 0 | Y71: Fx = | Z71: =C43+V79+T73/D22*1000+(C49+AM4*2*S16)*C53 -> 8 | AA71: N | AB71: =AB4*2 -> 2460 | AH71: =Z71*(D22/2+M52)/D22 -> 4.2 | AI71: =C43+V80 -> 0
Q72: My = | R72: 0 | S72: =C49*C53*M53/1000 -> 0 | T72: =C47+S72 -> 0 | U72: Nm | V72: =IF(AF23=1,AK18*T72,T72/U16*1000*Y27) -> 0.0 | W72: =IF(AF23=1,AK18*(T72-S72),(T72-S72)/U16*1000*Y27) -> 0 | Y72: Fy = | Z72: =C44+C49*10*Y16 -> 0 | AA72: N | AB72: =AC4 -> 2100 | AC72: =Z72/AB72 -> 0%
B73: Result: | D73: Allowed | Q73: Mz = | R73: =C49*10*M51/1000 -> 0 | S73: =C49*C53*M52/1000 -> 0 | T73: =Y16*R73+S73+C48 -> 0 | U73: Nm | V73: 0.0 | W73: 0 | Y73: Fz = | Z73: =C45+Y16*C49*10*M53/1000/D22*1000+C46/D22*1000 -> 0 | AA73: N | AB73: =AD4*2 -> 4200 | AC73: =Z73/AB73 -> 0%
A74: Fx = | B74: =X108 -> 27 | C74: N | D74: =Y108 -> 1230 | E74: N | F74: =IF(B74>D74,"Too much !"," ") ->  | Y74: Mx = | Z74: 0 | AA74: Nm | AD74: Anser att Mx blir ett kraftpar som ökar Fz
A75: Fy = | B75: =Z108 -> 0 | C75: N | D75: =AA108 -> 2100 | E75: N | Q75: Fy = | V75: =Z72*Y27 -> 0 | W75: =V75 -> 0 | Y75: My = | Z75: =T72 -> 0 | AA75: Nm | AB75: =AF4*2 -> 270 | AC75: =Z75/AB75 -> 0%
A76: Fz = | B76: =AB108 -> 0 | C76: N | D76: =AC108 -> 2100 | E76: N | Q76: Fz = | V76: =Z73*Y27 -> 0.0 | W76: =V76 -> 0.0 | Y76: Mz = | Z76: =T73 -> 0 | AA76: Nm | AD76: Anser att Mz blir ett kraftpar som ökar Fx
A77: Mx = | B77: =AD108 -> 0 | C77: Nm | D77: =AE108 -> 68 | E77: Nm
A78: My = | B78: =AF108 -> 0 | C78: Nm | D78: =AG108 -> 135 | E78: Nm | AB78: Totally | AC78: =SUM(AC72:AC77) -> 0%
A79: Mz = | B79: =AH108 -> 0 | C79: Nm | D79: =AI108 -> 135 | E79: Nm | U79: Totally | V79: =SUM(V71:V78) -> 0.0 | W79: =SUM(W71:W78) -> 0.0 | X79: N
F80: Total dynamic load combined all directions (apart of Fx) | G80: =AJ108 -> 0%
B81: =IF(AJ108>1,"The total load is too much ! Select bigger unit or another configuration.",IF(B74>D74,"The axial force is too much ! Select bigger unit or another configuration."," ")) ->  | Q81: Vertical mounting, single unit
Q82: Load torques caused by off center load | AB82: Max
B83: Designation: | C83: =CONCATENATE(O4,BO18,IF(C19<1000,"-00",IF(C19<10000,"-0","-")),C19,IF(G19<1000,"-00",IF(G19<10000,"-0","-")),G19,"x",W16,IF(Q16<3,"-0000",-G18)) -> WM08Z170-02000-02490xS-0000 | R83: Static | S83: Dynamic | T83: Totally | V83: Friction | Y83: Totally | AB83: allowed | AC83: % of max
Q84: Mx = | R84: 0 | S84: 0 | T84: =C46 -> 0 | U84: Nm | V84: =T84/AR4*1000*Y27 -> 0.0 | W84: =V84 -> 0.0 | Y84: Fx = | Z84: =C43+(C49+AM4*S16)*C53+AP4*S16+V92+C49*10 -> 27 | AA84: N | AB84: =AB4 -> 1230 | AH84: =Z84 -> 27 | AI84: =C43+AP4*S16+W92+C49*10 -> 23
B85: Calculation of lifetime | Q85: My = | R85: =C49*10*M53/1000 -> 0 | S85: =C49*C53*M53/1000 -> 0 | T85: =Y16*R85+S85+C47 -> 0 | U85: Nm | V85: =IF(AF23=1,AK18*T85,T85/U16*1000*Y27) -> 0.0 | W85: =IF(AF23=1,AK18*(R85+C47),(R85+C47)/U16*1000*Y27) -> 0 | Y85: Fy = | Z85: =C44 -> 0 | AA85: N | AB85: =AC4 -> 2100 | AC85: =Z85/AB85 -> 0%
Q86: Mz = | R86: =C49*10*M52/1000 -> 0 | S86: =C49*C53*M52/1000 -> 0 | T86: =Y16*R86+S86+C48 -> 0 | U86: Nm | V86: =IF(AF23=1,AK18*T86,T86/U16*1000*Y27) -> 0.0 | W86: =IF(AF23=1,AK18*(C48+R86),(C48+R86)/U16*1000*Y27) -> 0 | Y86: Fz = | Z86: =C45 -> 0 | AA86: N | AB86: =AD4 -> 2100 | AC86: =Z86/AB86 -> 0%
C87: Average load factor fm | D87: 1 | E87: =IF(D87>1," Not possible"," ") ->  | Y87: Mx = | Z87: =T84 -> 0 | AA87: Nm | AB87: =AE4 -> 68 | AC87: =Z87/AB87 -> 0%
C88: Ball guide | D88: =IF(R121<100000,R121,"> 100 000") -> > 100 000 | E88: h | F88: =IF(P121>10*10^7,">50 000",P121/1000) -> >50 000 | G88: km | Q88: Fy = | V88: =C44*Y27 -> 0 | W88: =V88 -> 0 | Y88: My = | Z88: =T85 -> 0 | AA88: Nm | AB88: =AF4 -> 135 | AC88: =Z88/AB88 -> 0%
C89: Ball bearing drive end | D89: =IF(AD123<100000,AD123,"> 100 000") -> 59,456 | E89: h | F89: =IF(AF123>50000,">50 000",AF123) -> >50 000 | G89: km | Q89: Fz = | V89: =C45*Y27 -> 0 | W89: =V89 -> 0 | Y89: Mz = | Z89: =T86 -> 0 | AA89: Nm | AB89: =AG4 -> 135 | AC89: =Z89/AB89 -> 0%
C90: Ball bearing tensioon wheel | D90: =IF(AD124<100000,AD124,"> 100 000") -> 11,559 | E90: h | F90: =IF(AF124>50000,">50 000",AF124) -> >50 000 | G90: km
AB91: Totally | AC91: =SUM(AC85:AC90) -> 0%
C92: number of cycles per minute | D92: 10 | F92: Duty cycle | G92: =D92*2*C58/60 -> 65% | H92: =IF(G92>1,"Not possible !"," ") ->  | U92: Totally | V92: =SUM(V84:V91) -> 0.0 | W92: =SUM(W84:W91) -> 0.0 | X92: N
C93: Working hours per day | D93: 16 | E93: =IF(D93>24," Not possible"," ") -> 
C94: Working days per year | D94: 365 | E94: =IF(D94>365," Not possible"," ") ->  | Q94: Vertical mounting, two units
Q95: Load torques caused by off center load | AB95: Max
C96: Lifetime | D96: =IF(P121*10^3/C55/2/D92/60/D93/D94>50,"> 50",P121*10^3/C55/2/D92/60/D93/D94) -> > 50 | E96: Years | F96: Ball guide | R96: Static | S96: Dynamic | T96: Totally | V96: Friction | Y96: Totally | AB96: allowed | AC96: % of max
D97: =IF(AH123>50,"> 50",AH123) -> 25.5 | E97: Years | F97: Ball bearing drive end | Q97: Mx = | R97: 0 | S97: 0 | T97: 0 | U97: Nm | V97: =C46/D22*1000*Y27 -> 0.0 | W97: =V97 -> 0.0 | Y97: Fx = | Z97: =C43+C49*10+2*AM4*S16+2*AP4*S16+T99/D22*1000+(C49+2*AM4*S16)*C53 -> 58 | AA97: N | AB97: =AB4*2 -> 2460 | AH97: =Z97*(D22/2+M52)/D22 -> 29 | AI97: =C43+C49*10+2*AM4*S16+2*AP4*S16 -> 49
D98: =IF(AH124>50,"> 50",AH124) -> 4.9 | E98: Years | F98: Ball bearing tension wheel | Q98: My = | R98: =C49*M53*10/1000 -> 0 | S98: =C49*C53*M53/1000 -> 0 | T98: =Y16*R98+S98+C47 -> 0 | U98: Nm | V98: =IF(AF23=1,AK18*T98,T98/U16*1000*Y27) -> 0.0 | W98: =IF(AF23=1,AK18*(R98+C47),(R98+C47)/U16*1000*Y27) -> 0 | Y98: Fy = | Z98: =C44 -> 0 | AA98: N | AB98: =AC4 -> 2100 | AC98: =Z98/AB98 -> 0%
Q99: Mz = | R99: =C49*10*M52/1000 -> 0 | S99: =C49*C53*M52/1000 -> 0 | T99: =Y16*R99+S99+C48 -> 0 | U99: Nm | V99: 0.0 | W99: 0 | Y99: Fz = | Z99: =C45+C46/D22*1000*2 -> 0 | AA99: N | AB99: =AD4*2 -> 4200 | AC99: =Z99/AB99 -> 0%
Y100: Mx = | Z100: 0 | AA100: Nm | AD100: Anser att Mx blir ett kraftpar som ökar Fz
C101: Idle torque at no load | D101: =O142 -> 5.55 | E101: Nm and | F101: =R117 -> 529 | G101: rpm at | H101: =C52 -> 1.5 | I101: m/s | Q101: Fy = | V101: =C44*Y27 -> 0 | W101: =V101 -> 0 | Y101: My = | Z101: =T98 -> 0 | AA101: Nm | AB101: =AF4*2 -> 270 | AC101: =Z101/AB101 -> 0%
Q102: Fz = | V102: =Z99*Y27 -> 0 | W102: =V102 -> 0 | Y102: Mz = | Z102: =T99 -> 0 | AA102: Nm | AD102: Anser att Mz blir ett kraftpar som ökar Fx
C103: Drive torque at constant speed | D103: =P151 -> 6.19 | E103: Nm and | F103: =D103*R117/9.55 -> 343 | G103: W
C104: Drive torque during acc | D104: =P152 -> 6.31 | E104: Nm and | F104: =D104*R117/9.55 -> 350 | G104: W | AB104: Totally | AC104: =SUM(AC98:AC103) -> 0%
C105: System inertia | D105: =S161 -> 0.002286321066 | E105: kg m² (excluding gear, motor etc) | U105: Totally | V105: =SUM(V97:V104) -> 0.0 | W105: =SUM(W97:W104) -> 0.0 | X105: N | AM105: Total Fx at const speed | AN105: Total Fx during acc
B106: =IF(P152>AI4*Q23,"Too high drive torque",IF(AND(Q23=2,P152<2*AI4,P152>AI4),"Will require central gear mounting"," ")) ->  | AK106: Max Fx
X107: Fx | Z107: Fy | AB107: Fz | AD107: Mx | AF107: My | AH107: Mz | AJ107: Total | AK107: one unit
B108: Gear / Motor | R108: =VLOOKUP($AA$23,$Q$109:R114,2) -> Horizontal mounting, single unit, carriage at top | S108: =VLOOKUP($AA$23,$Q$109:S114,2) -> Horizontal mounting, single unit, carriage at top | X108: =VLOOKUP($AA$23,$Q$109:X114,8) -> 27 | Y108: =VLOOKUP($AA$23,$Q$109:Y114,9) -> 1230 | Z108: =VLOOKUP($AA$23,$Q$109:Z114,10) -> 0 | AA108: =VLOOKUP($AA$23,$Q$109:AA114,11) -> 2100 | AB108: =VLOOKUP($AA$23,$Q$109:AB114,12) -> 0 | AC108: =VLOOKUP($AA$23,$Q$109:AC114,13) -> 2100 | AD108: =VLOOKUP($AA$23,$Q$109:AD114,14) -> 0 | AE108: =VLOOKUP($AA$23,$Q$109:AE114,15) -> 68 | AF108: =VLOOKUP($AA$23,$Q$109:AF114,16) -> 0 | AG108: =VLOOKUP($AA$23,$Q$109:AG114,17) -> 135 | AH108: =VLOOKUP($AA$23,$Q$109:AH114,18) -> 0 | AI108: =VLOOKUP($AA$23,$Q$109:AI114,19) -> 135 | AJ108: =VLOOKUP($AA$23,$Q$109:AJ114,20)+0.001 -> 0% | AK108: =VLOOKUP($AA$23,$Q$109:AK114,21) -> 26.7 | AL108: =VLOOKUP($AA$23,$Q$109:AL114,22) -> 0.0 | AM108: =VLOOKUP($AA$23,$Q$109:AM114,23) -> 22.5 | AN108: =VLOOKUP($AA$23,$Q$109:AN114,24) -> 26.7
Q109: 1 | R109: Horizontal mounting, single unit, carriage at top | X109: =Z31 -> 27 | Y109: =AB31 -> 1230 | Z109: =Z32 -> 0 | AA109: =AB32 -> 2100 | AB109: =Z33 -> 0 | AC109: =AB33 -> 2100 | AD109: =Z34 -> 0 | AE109: =AB34 -> 68 | AF109: =Z35 -> 0 | AG109: =AB35 -> 135 | AH109: =Z36 -> 0 | AI109: =AB36 -> 135 | AJ109: =AC38 -> 0% | AK109: =AH31 -> 26.7 | AL109: =AF38 -> 0.0 | AM109: =AI31 -> 22.5 | AN109: =AH31 -> 26.7
Q110: 2 | R110: Horizontal mounting, 2 units, carriage at top | X110: =Z45 -> 53 | Y110: =AB45 -> 2460 | Z110: =Z46 -> 0 | AA110: =AB46 -> 2100 | AB110: =Z47 -> 0 | AC110: =AB47 -> 4200 | AD110: =IF(Z48=0," - ",Z48) -> - | AE110: =IF(AB48=0," - ",AB48) -> - | AF110: =Z49 -> 0 | AG110: =AB49 -> 270 | AH110: =Z50 -> 0 | AI110: =IF(AB50=0," - ",AB50) -> - | AJ110: =AC52 -> 0% | AK110: =AH45 -> 26.7 | AL110: =AF52 -> 0 | AM110: =AI45 -> 45.0 | AN110: =AH45*2 -> 53.4
C111: =IF($L$262=2,"Ratio"," ") -> Ratio | D111: 3 | Q111: 3 | R111: Horizontal mounting, single unit, carriage sideway | X111: =Z58 -> 27 | Y111: =AB58 -> 1230 | Z111: =Z59 -> 0 | AA111: =AB59 -> 2100 | AB111: =Z60 -> 0 | AC111: =AB60 -> 2100 | AD111: =Z61 -> 0 | AE111: =AB61 -> 68 | AF111: =Z62 -> 0 | AG111: =AB62 -> 135 | AH111: =Z63 -> 0 | AI111: =AB63 -> 135 | AJ111: =AC65 -> 0% | AK111: =AH58 -> 26.7 | AL111: =AF65 -> 0.0 | AM111: =AI58 -> 22.5 | AN111: =AH58 -> 26.7
C112: =IF($L$262=2,"Effiency factor"," ") -> Effiency factor | D112: 95% | Q112: 4 | R112: Horizontal mounting, two units, carriages sideway | X112: =Z71 -> 8 | Y112: =AB71 -> 2460 | Z112: =Z72 -> 0 | AA112: =AB72 -> 2100 | AB112: =Z73 -> 0 | AC112: =AB73 -> 4200 | AD112: =IF(Z74=0," - ",Z74) -> - | AE112: =IF(AB74=0," - ",AB74) -> - | AF112: =Z75 -> 0 | AG112: =AB75 -> 270 | AH112: =Z76 -> 0 | AI112: =IF(AB76=0," - ",AB76) -> - | AJ112: =AC78 -> 0% | AK112: =AH71 -> 4.2 | AL112: =AF78 -> 0 | AM112: =AI71 -> 0.0 | AN112: =AH71*2 -> 8.4
C113: =IF($L$262=2,"Idle torque"," ") -> Idle torque | D113: 0.1 | E113: =IF($L$262=2,"Nm"," ") -> Nm | Q113: 5 | R113: Vertical mounting, single unit | X113: =Z84 -> 27 | Y113: =AB84 -> 1230 | Z113: =Z85 -> 0 | AA113: =AB85 -> 2100 | AB113: =Z86 -> 0 | AC113: =AB86 -> 2100 | AD113: =Z87 -> 0 | AE113: =AB87 -> 68 | AF113: =Z88 -> 0 | AG113: =AB88 -> 135 | AH113: =Z89 -> 0 | AI113: =AB89 -> 135 | AJ113: =AC91 -> 0% | AK113: =AH84 -> 26.7 | AL113: =AF91 -> 0.0 | AM113: =AI84 -> 23 | AN113: =AH84 -> 26.7
C114: =IF($L$262=2,"Inertia"," ") -> Inertia | D114: 5e-05 | E114: =IF($L$262=2,"kg m²"," ") -> kg m² | F114: =IF(AND(L262=2,Q23=2),"Total inertia for gears and parallel shaft"," ") ->  | Q114: 6 | R114: Vertical mounting, two units | X114: =Z97 -> 58 | Y114: =AB97 -> 2460 | Z114: =Z98 -> 0 | AA114: =AB98 -> 2100 | AB114: =Z99 -> 0 | AC114: =AB99 -> 4200 | AD114: =IF(Z100=0," - ",Z100) -> - | AE114: =IF(AB100=0," - ",AB100) -> - | AF114: =Z101 -> 0 | AG114: =AB101 -> 270 | AH114: =Z102 -> 0 | AI114: =AB102 -> 0 | AJ114: =AC104 -> 0% | AK114: =AH97 -> 28.8 | AL114: =AF104 -> 0 | AM114: =AI97 -> 49 | AN114: =AH97*2 -> 57.6
Q117: rpm drive shaft | R117: =$C$52*1000/C14*60 -> 529 | T117: motor speed | U117: =R117*IF(L262=1,1,D111) -> 1588 | V117: rpm
C119: =IF(OR(L266=2,L266=3),"Nominal torque",IF(L266=4,"Holding torque"," ")) ->  | D119: =IF(L266=2,Q206,IF(L266=3,R177,IF(L266=4,O234," "))) ->  | E119: =IF(L266=2,"Nm",IF(L266=3,"Nm at max speed",IF(L266=4,"Nm"," "))) ->  | N119: Calculation of lifetime. | Q119: The lifetime of the ball guides will be based on the total % of load in all directions and the max allowed Fz load compared to Cz value for the ball guides
C120: =IF($L$266=2,"Nominal speed",IF($L$266=3,"Peak torque"," ")) ->  | D120: =IF(L266=2,O206,IF(L266=3,S177," ")) ->  | E120: =IF($L$266=2,"rpm",IF($L$266=3,"Nm"," ")) ->  | N120: Lh ball guide = (C / ( Fz x %))^3 x 10^5 m
C121: =IF($L$266=2,"Nominal power",IF($L$266=3,"Max speed"," ")) ->  | D121: =IF(L266=2,P206,IF(L266=3,O177," ")) ->  | E121: =IF($L$266=2,"kW",IF($L$266=3,"rpm"," ")) ->  | N121: Lifetime ball guide = | P121: =(AU4*Q23*T23/(AD4+AT4)/AJ108/D87)^3*10^5 -> 2.945854342e+17 | Q121: m | R121: =P121/C52/3600 -> 5.455285819e+13 | S121: h
C122: =IF(L266=3,"Nominal power"," ") ->  | D122: =IF(L266=3,P177," ") ->  | E122: =IF(L266=3,"kW"," ") -> 
C123: =IF(L266=5,"Customer motor data:"," ") -> Customer motor data: | D123: Supplier, torque, power, rpm etc | N123: Force at drive pulley equally shared on two ball bearings. Total force( 2 x 1,1 x pretension belt) + Fx | Y123: =(2*1.1*AX4+X108)/2 -> 1630 | Z123: N / bearing | AB123: Lifetime ball bearing | AD123: =(AY4/Y123)^3*10^6/C14/60 -> 59456 | AE123: h | AF123: =AD123*3600*C52/1000 -> 321,062 | AG123: km | AH123: =AF123*1000/C55/2*1000/D92/60/D93/D94 -> 25.45198775
N124: Force at tensioning wheel equally shared on two ball bearings. Total force (2 x 1,1 x pretension belt) + (2 x Fx) | Y124: =(2*1.1*AX4+2*X108)/2 -> 1644 | Z124: N / bearing | AB124: Lifetime ball bearing | AD124: =(AZ4/Y124)^3*10^6/C14/60 -> 11559 | AE124: h | AF124: =AD124*3600*C52/1000 -> 62,421 | AG124: km | AH124: =AF124*1000/C55/2*1000/$D$92/60/$D$93/$D$94 -> 4.948396029
O126: Efficieny factor belt = | P126: 95%
C127: =IF(L266=5,"Motor inertia:"," ") -> Motor inertia: | D127: 0.0005 | E127: =IF(L266=5,"kg m²"," ") -> kg m²
B129: Required motor data
C130: Torque at constant speed | D130: =Z151 -> 2.27 | E130: Nm
C131: Torque during acceleration | D131: =Z152 -> 2.40 | E131: Nm
C132: Power at constant speed | D132: =D130*D134/9550 -> 0.38 | E132: kW
C133: Power during acceleration | D133: =D131*D134/9550 -> 0.40 | E133: kW | F133: =D134/D120*50 ->  | G133: =IF(L266=2,"Hz"," ") -> 
C134: Max speed | D134: =U117 -> 1,588 | E134: rpm
C135: Inertia balance | D135: =R167 -> 1.6
A137: Notes: | Y137: =M4+1 -> 3 | AB137: kg m²
AA138: =VLOOKUP(Y137,Z139:AB142,2) -> GS24 | AB138: =VLOOKUP(Y137,Z139:AB142,3) -> 0.000163
L139: Idle torque Nm | N139: 150 | O139: =IF($M$4=1,600,450) -> 450 | P139: =IF($M$4=1,1250,885) -> 885 | Z139: 1 | AA139: GS14 | AB139: =0.0000065 -> 6.5e-06
N140: =BA4 -> 4 | O140: =BB4 -> 5.4 | P140: 6.2 | Y140: WM60 | Z140: 2 | AA140: GS19 | AB140: 3.9e-05
Y141: WM80 | Z141: 3 | AA141: GS24 | AB141: 0.000163
L142: Idle torque at this speed | O142: =IF(R117<=150,N140,IF(AND(R117>150,R117<=O139),N140+(R117-150)/(O139-N139)*(O140-N140),O140+(R117-O139)/(P139-O139)*(P140-O140))) -> 5.55 | P142: Nm | Y142: WM120 | Z142: 4 | AA142: GS28 | AB142: 0.00038
L151: Drive torque during constant speed | P151: =O142+AM108*C14/2/1000/P126/PI() -> 6.186852685 | Q151: Nm | V151: Motor torque during costant speed | Z151: =IF(L262=1,P151/0.99,P151/D111/D112+D113) -> 2.270825504 | AA151: Nm
L152: Drive torque during acceleration | P152: =O142+AN108*C14/2/1000/P126/PI() -> 6.30647019 | Q152: Nm (including ball screw inertia) | V152: Motor torque duringacceleration | Z152: =AC161+Z151 -> 2.397 | AA152: Nm including inertia and losses in gear
P155: =P152-P151 -> 0.1196175046
AA156: Drive | AC156: motor
L157: Linear inertia from load, carries and belt: | Q157: m x ( m/min / 2π / rpm ) ^2 = | T157: =(BD4*2*G19/1000+C49+AM4*Q23)*(C52*60/2/PI()/R117)^2 -> 0.002047677818 | U157: kg m² | AA157: shaft | AC157: shaft
L158: Inertia drive pulley | N158: J = m / 2 x R² | T158: =PI()*AW4^2/4*BE4*2.7/10^6/2*(AW4/2/1000)^2*Q23 -> 0.000170 | U158: kg m² | Y158: Inertia | AA158: =S161 -> 0.002286321066 | AB158: kgm² | AC158: =IF(L262=1,S161+T162+T164,(S160+T162)/D111^2/D112+T163+T164) -> 0.0005690643275 | AD158: kgm² | AF158: 1
L159: Inertia tension pulley | T159: =PI()*AW4^2/4*BF4*2.7/10^6/2*(AW4/2/1000)^2*Q23 -> 6.818378531e-05 | U159: kg m² | Y159: Top speed | AA159: =R117 -> 529 | AB159: rpm | AC159: =U117 -> 1588 | AD159: rpm | AF159: Guide for selection of fm factor
L160: Parallel shaft VWZ- | T160: =(Q23-1)*(2*BG4+BH4*D22/1000) -> 0 | U160: kg m² | Y160: Acceleration time | AA160: =C52/C53 -> 0.75 | AB160: sec | AC160: =AA160 -> 0.75 | AD160: sec | AF160: fm = 1,0 ; The same load in both directions
S161: =SUM(T157:T160) -> 0.002286321066 | AA161: =AA158*3.14*AA159/30/AA160 -> 0.169 | AB161: Nm | AC161: =AC158*3.14*AC159/30/AC160 -> 0.126 | AD161: Nm | AF161: fm = 0,89 ; Full load forward, 75% load back
L162: Inertia coupling | T162: =AB138 -> 0.000163 | AF162: fm = 0,81 ; Full load forward, 50% load back
L163: Inertia gear | T163: =IF(L262=2,D114,0) -> 5e-05 | AF163: fm = 0,8 ; Full load forward, no load back
L164: Inertia motor | T164: =IF(L266=1,0,IF(L266=2,R206,IF(L266=3,V177,IF(L266=4,P234,IF(L266=5,D127,0))))) -> 0.0005 | AF164: fm = 0,48 ; Full load 10% of the stroke forward and 20% rest of cycle
M166: Total inertia reduced to motor shaft | S166: =(S161+T162)/IF(L262=1,1,D111^2)+T163+T164 -> 0.0008221467851
M167: Inertia balance | R167: =S166/T164 -> 1.64429357
L174: 1 | M174: 2 | N174: 3 | O174: 4 | P174: 5 | Q174: 6 | R174: 7 | S174: 8 | T174: 9 | U174: 10 | V174: 11 | W174: 12 | X174: 13 | Y174: 14
M176: AKM servo motor | O176: nom rpm | P176: kW | Q176: nom Nm | R176: Nm at max rpm | S176: Peak Nm | T176: Inertia | U176: Brake inertia | W176: Nm/A | X176: mVmin | Y176: Ohm
M177: =VLOOKUP($L$274,$L$178:M201,M$174) -> AKM65M | N177: =VLOOKUP($L$274,$L$175:N198,N174) -> 0 | O177: =VLOOKUP($L$274,$L$175:O198,O174) -> 2500 | P177: =VLOOKUP($L$274,$L$175:P198,P174) -> 5.03 | Q177: =VLOOKUP($L$274,$L$175:Q198,Q174) -> 25 | R177: =VLOOKUP($L$274,$L$175:R198,R174) -> 19.2 | S177: =VLOOKUP($L$274,$L$175:S198,S174) -> 65.2 | T177: =VLOOKUP($L$274,$L$175:T198,T174) -> 0.004 | U177: =VLOOKUP($L$274,$L$175:U198,U174) -> 6.1e-05 | V177: =VLOOKUP($L$274,$L$175:V198,V174) -> 0.004061 | W177: =VLOOKUP($L$274,$L$175:W198,W174) -> 1.85 | X177: =VLOOKUP($L$274,$L$175:X198,X174) -> 119 | Y177: =VLOOKUP($L$274,$L$175:Y198,Y174) -> 0.68
L178: 1 | M178: AKM31C | O178: 5000 | P178: 0.52 | Q178: 1.15 | R178: 1 | S178: 3.88 | T178: 3.3e-05 | U178: 1.2e-06 | V178: =IF($O$266=2,T178+U178,T178) -> 3.42e-05 | W178: 0.85 | X178: 54.5 | Y178: 21.4
L179: 2 | M179: AKM32C | O179: 3000 | P179: 0.58 | Q179: 2 | R179: 1.86 | S179: 6.92 | T179: 5.9e-05 | U179: 1.2e-06 | V179: 6.02e-05 | W179: 1.4 | X179: 89.8 | Y179: 23
L180: 3 | M180: AKM33E | O180: 4500 | P180: 1.1 | Q180: 2.79 | R180: 2.34 | S180: 9.96 | T180: 0.000085 | U180: 1.2e-06 | V180: 8.62e-05 | W180: 1.1 | X180: 70.6 | Y180: 8.36
L181: 4 | M181: AKM41C | O181: 3000 | P181: 0.56 | Q181: 1.95 | R181: 1.77 | S181: 6.12 | T181: 8.1e-05 | U181: 6.8e-06 | V181: 8.78e-05 | W181: 1.34 | X181: 86.3 | Y181: 21.7
L182: 5 | M182: AKM42E | O182: 3500 | P182: 1.03 | Q182: 3.42 | R182: 2.81 | S182: 11.3 | T182: 0.00015 | U182: 6.8e-06 | V182: 0.0001568 | W182: 1.26 | X182: 80.9 | Y182: 7.22
L183: 6 | M183: AKM43E | O183: 2500 | P183: 1.03 | Q183: 4.7 | R183: 3.92 | S183: 15.9 | T183: 0.00021 | U183: 6.8e-06 | V183: 0.0002168 | W183: 1.72 | X183: 111 | Y183: 8.04
L184: 7 | M184: AKM44G | O184: 4000 | P184: 1.57 | Q184: 5.88 | R184: 3.76 | S184: 20.2 | T184: 0.00027 | U184: 6.8e-06 | V184: 0.0002768 | W184: 1.19 | X184: 76.6 | Y184: 2.65
L185: 8 | M185: AKM51E | O185: 2500 | P185: 1.04 | Q185: 4.7 | R185: 3.98 | S185: 11.6 | T185: 0.00034 | U185: 1.7e-05 | V185: 0.000357 | W185: 1.72 | X185: 110 | Y185: 8.47
L186: 9 | M186: AKM52G | O186: 2500 | P186: 1.85 | Q186: 8.43 | R186: 7.06 | S186: 21.5 | T186: 0.00062 | U186: 1.7e-05 | V186: 0.000637 | W186: 1.79 | X186: 115 | Y186: 3.47
L187: 10 | M187: AKM53K | O187: 4000 | P187: 3.2 | Q187: 11.6 | R187: 7.65 | S187: 30.1 | T187: 0.00091 | U187: 1.7e-05 | V187: 0.000927 | W187: 1.24 | X187: 79.8 | Y187: 1
L188: 11 | M188: AKM54K | O188: 3500 | P188: 3.68 | Q188: 14.4 | R188: 10.05 | S188: 38.4 | T188: 0.0012 | U188: 1.7e-05 | V188: 0.001217 | W188: 1.5 | X188: 96.6 | Y188: 1.02
L189: 12 | M189: AKM62K | O189: 3500 | P189: 3.3 | Q189: 12.2 | R189: 9 | S189: 30.1 | T189: 0.0017 | U189: 6.1e-05 | V189: 0.001761 | W189: 1.28 | X189: 82.1 | Y189: 1.05
L190: 13 | M190: AKM63K | O190: 3000 | P190: 4.05 | Q190: 16.8 | R190: 12.9 | S190: 42.6 | T190: 0.0024 | U190: 6.1e-05 | V190: 0.002461 | W190: 1.71 | X190: 110 | Y190: 1.09
L191: 14 | M191: AKM64L | O191: 3000 | P191: 4.9 | Q191: 21 | R191: 15.6 | S191: 54.1 | T191: 0.0032 | U191: 6.1e-05 | V191: 0.003261 | W191: 1.66 | X191: 107 | Y191: 0.71
L192: 15 | M192: AKM65M | O192: 2500 | P192: 5.03 | Q192: 25 | R192: 19.2 | S192: 65.2 | T192: 0.004 | U192: 6.1e-05 | V192: 0.004061 | W192: 1.85 | X192: 119 | Y192: 0.68
L193: 16
L194: 17
L195: 18
L196: 19
L197: 20
L198: 21
L199: 22
L200: 23
L201: 24
M205: AC motors | O205: rpm | P205: kW | Q205: Nm | R205: Kgm2
M206: =VLOOKUP($L$274,$L$207:M230,M$174) -> IEC90 1500 rpm 1,5 kW | O206: =VLOOKUP($L$274,$L$204:O227,O$174) -> 1420 | P206: =VLOOKUP($L$274,$L$204:P227,P$174) -> 1.5 | Q206: =VLOOKUP($L$274,$L$204:Q227,Q$174) -> 10.28907042 | R206: =VLOOKUP($L$274,$L$204:R227,R$174) -> 0.0028
L207: 1 | M207: IEC 63 3000 rpm 0,25 kW | O207: 2750 | P207: 0.25 | Q207: =71620*1.36*P207/O207/10 -> 0.9 | R207: 0.00023
L208: 2 | M208: IEC 63 with brake 3000 rpm 0,25 kW | O208: 2750 | P208: 0.25 | Q208: 0.9 | R208: 0.00025
L209: 3 | M209: IEC 63 1500 rpm 0,18 kW | O209: 1360 | P209: 0.18 | Q209: 1.3 | R209: 0.00025
L210: 4 | M210: IEC 63 with brake 1500 rpm 0,18 kW | O210: 1360 | P210: 0.18 | Q210: 1.3 | R210: 0.00035
L211: 5 | M211: IEC71 3000 rpm 0,55 kW | O211: 2760 | P211: 0.55 | Q211: 1.9 | R211: 0.00042
L212: 6 | M212: IEC71 with brake 3000 rpm 0,55 kW | O212: 2760 | P212: 0.55 | Q212: 1.9 | R212: 0.00049
L213: 7 | M213: IEC71 1500 rpm 0,37 kW | O213: 1370 | P213: 0.37 | Q213: 2.6 | R213: 0.00081
L214: 8 | M214: IEC71 with brake 1500 rpm 0,37 kW | O214: 1370 | P214: 0.37 | Q214: 2.6 | R214: 0.00094
L215: 9 | M215: IEC80 3000 rpm 1,1 kW | O215: 2840 | P215: 1.1 | Q215: 3.8 | R215: 0.00098
L216: 10 | M216: IEC80 with brake 3000 rpm 1,1 kW | O216: 2840 | P216: 1.1 | Q216: 3.8 | R216: =0.000061+R215 -> 0.001041
L217: 11 | M217: IEC80 1500 rpm 0,75 kW | O217: 1380 | P217: 0.75 | Q217: 5.3 | R217: 0.001874
L218: 12 | M218: IEC80 with brake 1500 rpm 0,75 kW | O218: 1380 | P218: 0.75 | Q218: 5.3 | R218: =0.000061+R217 -> 0.001935
L219: 13 | M219: IEC90 3000 rpm 2,2 kW | O219: 2860 | P219: 2.2 | Q219: 7.3 | R219: 0.00161
L220: 14 | M220: IEC90 with brake 3000 rpm 2,2 kW | O220: 2850 | P220: 2.2 | Q220: 7.5 | R220: =0.0002+R219 -> 0.00181
L221: 15 | M221: IEC90 1500 rpm 1,5 kW | O221: 1420 | P221: 1.5 | Q221: 10.3 | R221: 0.00280
L222: 16 | M222: IEC90 with brake 1500 rpm 1,5 kW | O222: 1420 | P222: 1.5 | Q222: 10.3 | R222: 0.00410
L223: 17 | M223: IEC100 3000 rpm 3 kW | O223: 2850 | P223: 3 | Q223: 9.9 | R223: 0.0032
L224: 18 | M224: IEC100 with brake 3000 rpm 3 kW | O224: 2850 | P224: 3 | Q224: 9.9 | R224: 0.00427
L225: 19 | M225: IEC100 1500 rpm 3 kW | O225: 1430 | P225: 3 | Q225: 20 | R225: 0.006
L226: 20 | M226: IEC100 with brake 1500 rpm 3 kW | O226: 1430 | P226: 3 | Q226: 20 | R226: 0.0101
L227: 21 | M227: IEC112 3000 rpm 4 kW | O227: 2890 | P227: 4 | Q227: 13.2 | R227: 0.00499
L228: 22 | M228: IEC112 with brake 3000 rpm 4 kW | O228: 2890 | P228: 4 | Q228: 13.2 | R228: 0.0083
L229: 23 | M229: IEC112 1500 rpm 4 kW | O229: 1420 | P229: 4 | Q229: 26.6 | R229: 0.01114
L230: 24 | M230: IEC112 with brake 1500 rpm 4 kW | O230: 1420 | P230: 4 | Q230: 26.6 | R230: 0.02
O233: Hold torque | P233: Inertia
M234: =VLOOKUP($L$274,$L$235:M258,M$174) -> - | N234: =VLOOKUP($L$274,$L$232:N255,N$174) -> 0 | O234: =VLOOKUP($L$274,$L$232:O255,O$174) -> - | P234: =VLOOKUP($L$274,$L$232:P255,P$174) -> -
L235: 1 | M235: KML061 | O235: 1.2 | P235: 2.4e-05
... 57 more rows

Sheet Calculation SCREW
A1: Linear unit WM | D1: Sizing & selection | I1: 2015 03 23 JHj Release 1
A2: WM60 WM80 WM120 | X2: max stroke | Y2: C/C "Schlitt" in long carr | Z2: add length C | AA2: Min dist carriage LA | AB2: Fx max | AC2: Fy | AD2: Fz | AE2: Mx | AF2: My | AG2: Mz | AH2: Frd | AI2: Mta | AJ2: Speed | AK2: Acc | AL2: Long carriage weight | AM2: Carriage weight | AN2: Weight | AP2: second carriage | AQ2: Distance between | AR2: ball guide carriage | AT2: preload | AU2: Cz dyn | AV2: Cy dyn | AW2: Cx dyn ball screw | AX2: preload ball screw | AY2: preload ball bearing | BA2: Cr dyn ball bearing | BB2: Ball screw diameter | BC2: Inertia kgm² / m | BL2: #
A3: Customer | AN3: 0 stroke | AO3: 100 mm | AP3: friction N | AQ3: Lx | AR3: Ly | AT3: each carriage
A4: Project | Q4: 2 | R4: =VLOOKUP($Q$4,$Q$5:R9,R10) -> WM60S | S4: =VLOOKUP($Q$4,$Q$5:S9,S10) -> Ball screw Ø20 with single ball nut | T4: =VLOOKUP($Q$4,$Q$5:T9,T10) -> 0 | U4: =VLOOKUP($Q$4,$Q$5:U9,U10) -> 0 | V4: =VLOOKUP($Q$4,$Q$5:V9,V10) -> 0 | W4: =VLOOKUP($Q$4,$Q$5:W9,W10) -> 0.02 | X4: =VLOOKUP($Q$4,$Q$5:X9,X10) -> 5000 | Y4: =VLOOKUP($Q$4,$Q$5:Y9,Y10) -> 0 | Z4: =VLOOKUP($Q$4,$Q$5:Z9,Z10) -> 480 | AA4: =VLOOKUP($Q$4,$Q$5:AA9,AA10) -> 255 | AB4: =VLOOKUP($Q$4,$Q$5:AB9,AB10) -> 2800 | AC4: =VLOOKUP($Q$4,$Q$5:AC9,AC10)*S13 -> 1400 | AD4: =VLOOKUP($Q$4,$Q$5:AD9,AD10)*S13 -> 1400 | AE4: =VLOOKUP($Q$4,$Q$5:AE9,AE10) -> 50 | AF4: =VLOOKUP($Q$4,$Q$5:AF9,AF10) -> 100 | AG4: =VLOOKUP($Q$4,$Q$5:AG9,AG10) -> 100 | AH4: =VLOOKUP($Q$4,$Q$5:AH9,AH10) -> 500 | AI4: =VLOOKUP($Q$4,$Q$5:AI9,AI10) -> 35 | AJ4: =VLOOKUP($Q$4,$Q$5:AJ9,AJ10) -> 2.5 | AK4: =VLOOKUP($Q$4,$Q$5:AK9,AK10) -> 20 | AL4: =VLOOKUP($Q$4,$Q$5:AL9,AL10) -> 0 | AM4: =VLOOKUP($Q$4,$Q$5:AM9,AM10) -> 1 | AN4: =VLOOKUP($Q$4,$Q$5:AN9,AN10) -> 3.8 | AO4: =VLOOKUP($Q$4,$Q$5:AO9,AO10) -> 0.65 | AP4: =VLOOKUP($Q$4,$Q$5:AP9,AP10) -> 18 | AQ4: =VLOOKUP($Q$4,$Q$5:AQ9,AQ10) -> 0 | AR4: =VLOOKUP($Q$4,$Q$5:AR9,AR10) -> 35 | AS4: =VLOOKUP($Q$4,$Q$5:AS9,AS10) -> WM06S | AT4: =VLOOKUP($Q$4,$Q$5:AT9,AT10) -> 300 | AU4: =VLOOKUP($Q$4,$Q$5:AU9,AU10) -> 23868 | AV4: =VLOOKUP($Q$4,$Q$5:AV9,AV10) -> 25928 | AW4: =BO21 -> 10500 | AX4: =VLOOKUP($Q$4,$Q$5:AX9,AX10) -> 0 | AY4: =VLOOKUP($Q$4,$Q$5:AY9,AY10) -> 500 | AZ4: =VLOOKUP($Q$4,$Q$5:AZ9,AZ10) -> 7205 BEP | BA4: =VLOOKUP($Q$4,$Q$5:BA9,BA10) -> 20200 | BB4: =VLOOKUP($Q$4,$Q$5:BB9,BB10) -> 20 | BC4: =VLOOKUP($Q$4,$Q$5:BC9,BC10) -> 8.46e-05 | BD4: =VLOOKUP($Q$4,$Q$5:BD9,BD10) -> 0 | BE4: =VLOOKUP($Q$4,$Q$5:BE9,BE10) -> 0 | BF4: =VLOOKUP($Q$4,$Q$5:BF9,BF10) -> 0 | BG4: =VLOOKUP($Q$4,$Q$5:BG9,BG10) -> 0 | BH4: =VLOOKUP($Q$4,$Q$5:BH9,BH10) -> 0 | BI4: =VLOOKUP($Q$4,$Q$5:BI9,BI10) -> 0
A5: Date | E5: Ref: | F5: xxx | Q5: 1 | R5: WM60D | S5: Ball screw Ø20 with double ball nuts | W5: 0.01 | X5: =IF($BO$16=50,5000,11000) -> 11,000 | Y5: =190+141.7 -> 331.7 | Z5: =IF(Q13=2,AV17,AR17) -> 650 | AA5: 335 | AB5: 4000 | AC5: 2000 | AD5: 2000 | AE5: 100 | AF5: =IF($Q$13=1,200,IF($Q$13=2,500,2*$G$18)) -> 200 | AG5: =AF5 -> 200 | AH5: 500 | AI5: 35 | AJ5: 2.5 | AK5: 10 | AL5: 3.1 | AM5: 1.99 | AN5: 6.16 | AO5: 0.65 | AP5: 20 | AQ5: 141.7 | AR5: 35 | AS5: WM06D | AT5: 500 | AU5: =4*10581 -> 42324 | AV5: =4*11495 -> 45980 | AX5: 400 | AY5: 500 | AZ5: 7205 BEP | BA5: 20200 | BB5: 20 | BC5: =8.46*10^-5 -> 8.46e-05
Q6: 2 | R6: WM60S | S6: Ball screw Ø20 with single ball nut | W6: 0.02 | X6: 5,000 | Y6: 0 | Z6: =AT17 -> 480 | AA6: 255 | AB6: 2800 | AC6: 1400 | AD6: 1400 | AE6: 50 | AF6: =IF($Q$13=1,100,IF($Q$13=2,0,1.4*$G$18)) -> 100 | AG6: =AF6 -> 100 | AH6: 500 | AI6: 35 | AJ6: 2.5 | AK6: 20 | AL6: 0 | AM6: 1 | AN6: 3.8 | AO6: 0.65 | AP6: 18 | AQ6: 0 | AR6: 35 | AS6: WM06S | AT6: 300 | AU6: =2*11934 -> 23868 | AV6: =2*12964 -> 25928 | AX6: 0 | AY6: 500 | AZ6: 7205 BEP | BA6: 20200 | BB6: 20 | BC6: =BC5 -> 8.46e-05
A7: Linear drive unit: | Q7: 3 | R7: WM80D | S7: Ball screw Ø25 with double ball nuts | W7: 0.01 | X7: =IF($BO$16=50,5000,11000) -> 11,000 | Y7: =170+154 -> 324 | Z7: =IF(Q13=2,BB17,AX17) -> 635 | AA7: 360 | AB7: 5000 | AC7: 3000 | AD7: 3000 | AE7: 350 | AF7: =IF($Q$13=1,300,IF($Q$13=2,750,3*$G$18)) -> 300 | AG7: 300 | AH7: 700 | AI7: 55 | AJ7: 2.5 | AK7: 20 | AL7: 6.4 | AM7: 4.26 | AN7: 11.57 | AO7: 1.08 | AP7: 25 | AQ7: 154 | AR7: 48.75 | AS7: WM08D | AT7: 600 | AU7: =4*13739 -> 54956 | AV7: =4*14356 -> 57424 | AX7: 500 | AY7: 700 | AZ7: 7206 BEP | BA7: 21700 | BB7: 25 | BC7: =2.25*10^-4 -> 0.000225
B8: Size | Q8: 4 | R8: WM80S | S8: Ball screw Ø25 with single ball nut | W8: 0.02 | X8: 5000 | Y8: 0 | Z8: =AZ17 -> 515 | AA8: 280 | AB8: 3500 | AC8: 2100 | AD8: 2100 | AE8: 150 | AF8: =IF($Q$13=1,180,IF($Q$13=2,0,2.1*$G$18)) -> 180 | AG8: 180 | AH8: 700 | AI8: 55 | AJ8: 2.5 | AK8: 20 | AL8: 0 | AM8: 1.6 | AN8: 7 | AO8: 1.1 | AP8: 22.5 | AQ8: 0 | AR8: 48.75 | AS8: WM08S | AT8: 400 | AU8: =2*17919 -> 35838 | AV8: =2*18723 -> 37446 | AX8: 0 | AY8: 700 | AZ8: 7206 BEP | BA8: 27500 | BB8: 25 | BC8: =BC7 -> 0.000225
Q9: 5 | R9: WM120D | S9: Ball screw Ø32 with double ball nuts | W9: 0.01 | X9: =IF($BO$16=40,5000,11000) -> 11,000 | Y9: =180+186 -> 366 | Z9: =IF(Q13=2,BF17,BD17) -> 805 | AA9: 450 | AB9: =IF($BO$16=40,8000,12000) -> 12,000 | AC9: 6000 | AD9: 6000 | AE9: 500 | AF9: =IF($Q$13=1,600,IF($Q$13=2,1500,6*$G$18)) -> 600 | AG9: 600 | AH9: 1000 | AI9: 80 | AJ9: 2 | AK9: 20 | AL9: 14.2 | AM9: 9.25 | AN9: 25.91 | AO9: 1.93 | AP9: 30 | AQ9: 186 | AR9: 80.75 | AS9: WM12D | AT9: 1000 | AU9: =4*17919 -> 71676 | AV9: =4*18723 -> 74892 | AX9: 1200 | AY9: 1500 | AZ9: 7207 BEP | BA9: 34500 | BB9: 32 | BC9: =6.34*10^-4 -> 0.000634
B10: Guidings | C10: Ball guides | Q10: 1 | R10: 2 | S10: 3 | T10: 4 | U10: 5 | V10: 6 | W10: 7 | X10: 8 | Y10: 9 | Z10: 10 | AA10: 11 | AB10: 12 | AC10: 13 | AD10: 14 | AE10: 15 | AF10: 16 | AG10: 17 | AH10: 18 | AI10: 19 | AJ10: 20 | AK10: 21 | AL10: 22 | AM10: 23 | AN10: 24 | AO10: 25 | AP10: 26 | AQ10: 27 | AR10: 28 | AS10: 29 | AT10: 30 | AU10: 31 | AV10: 32 | AW10: 33 | AX10: 34 | AY10: 35 | AZ10: 36 | BA10: 37 | BB10: 38 | BC10: 39 | BD10: 40 | BE10: 41 | BF10: 42 | BG10: 43 | BH10: 44 | BI10: 45
B11: Drive mechanism | C11: =S4 -> Ball screw Ø20 with single ball nut
B12: Ball screw lead mm | S12: Carriages/unit
Q13: 1 | S13: =IF(Q13=3,2,1) -> 1 | U13: =VLOOKUP(Q13,Q14:U16,5) -> 0 | V13: =VLOOKUP(Q13,Q14:V16,6) -> 1 | W13: =VLOOKUP(Q13,Q14:W16,7) -> S | X13: 1 | Y13: =IF(X13=1,1,0) -> 1 | AB13: Following assumption is made: each Nm torque in Mz and My will create a friction force of | AK13: =IF(Q4=4,1,1.5) -> 1.5 | AL13: N for WM60S and WM 80S with single carriage
B14: Move per rev | C14: =BO16 -> 5 | D14: mm | Q14: 1 | R14: =IF(OR($Q$4=2,$Q$4=4),"S = Single short carriage","N = Single standard carriage") -> S = Single short carriage | U14: =AQ4 -> 0 | V14: =AM4 -> 1 | W14: =IF(OR($Q$4=2,$Q$4=4),"S","N") -> S | X14: 1 | Y14: Yes | AB14: For other units, this will be concidered to create a pair of forces in Y or Z direction
B15: Repeatability | C15: =W4 -> 0.02 | D15: mm | Q15: 2 | R15: =IF(OR($Q$4=2,$Q$4=4)," ","L = Single long carriage") ->  | U15: =Y4 -> 0 | V15: =IF(Q4=1,1.47,IF(Q4=2,3.43,8.67)) -> 3.43 | W15: =IF(OR($Q$4=2,$Q$4=4),"? ","L") -> ? | X15: 2 | Y15: No | AV15: Calculation of total length L tot = stroke + C | BK15: Screw lead
Q16: 3 | R16: =IF(OR($Q$4=2,$Q$4=4),"Y = Double short carriages","Z = Double standard carriages") -> Y = Double short carriages | U16: =G18 -> 500 | V16: =2*AM4 -> 2 | W16: =IF(OR($Q$4=2,$Q$4=4),"Y","Z") -> Y | AR16: WM60D | AT16: WM60S | AU16: WM60D Long carr. | AX16: WM80D | AZ16: WM80S | BA16: WM8D0 long carriage | BD16: WM120D | BE16: WM120D long carr | BH16: =Q4 -> 2 | BI16: WM60D | BJ16: WM60S | BK16: WM80D | BL16: WM80S | BM16: WM120D | BN16: 1 | BO16: =VLOOKUP(BN16,BN17:BO20,2) -> 5
F17: =IF(AND(OR(Q4=2,Q4=4),Q13=2),"Long carriage not available"," ") ->  | AA17: Configuration | AF17: If WM60S or WM80S with single carriage, then Yes = 1 otherwise No = 0 | AQ17: C = | AR17: =VLOOKUP(C19,AQ18:AR34,2) -> 650 | AS17: C = | AT17: =VLOOKUP(C19,AS18:AT35,2) -> 480 | AU17: C = | AV17: =VLOOKUP(C19,AU18:AV34,2) -> 840 | AW17: C = | AX17: =VLOOKUP(C19,AW18:AX32,2) -> 635 | AY17: C = | AZ17: =VLOOKUP(C19,AY18:AZ33,2) -> 515 | BA17: C = | BB17: =VLOOKUP(C19,BA18:BB33,2) -> 805 | BC17: C = | BD17: =VLOOKUP(C19,BC18:BD31,2) -> 805 | BE17: C = | BF17: =VLOOKUP(C19,BE18:BF31,2) -> 985 | BI17: 5 | BJ17: 5 | BK17: 5 | BL17: 5 | BM17: 5 | BN17: 1 | BO17: 5
B18: Saddle | E18: =IF(K22=2,"Not available"," ") ->  | F18: =IF(Q13=3,"LA ="," ") ->  | G18: 500 | H18: =IF(Q13=3,"mm","Only when C-saddle") -> Only when C-saddle | I18: =IF(AND(Q13=3,G18<AA4),"Too short"," ") ->  | Q18: 1 | R18: units | S18: =Q18-1 -> 0 | T18: 1 | W18: 1 | AA18: =IF(AND(Q18=1,T18=1,W18=1),1,IF(AND(Q18=2,T18=1,W18=1),2,IF(AND(Q18=1,T18=1,W18=2),3,IF(AND(Q18=2,T18=1,W18=2),4,IF(AND(Q18=1,T18=2),5,IF(AND(Q18=2,T18=2),6,"")))))) -> 1 | AF18: =IF(AND(Q4=2,Q13=1),1,IF(AND(Q4=4,Q13=1),1,0)) -> 1 | AQ18: 0 | AR18: 460 | AS18: 0 | AT18: 335 | AU18: 0 | AV18: 650 | AW18: 0 | AX18: 500 | AY18: 0 | AZ18: 350 | BA18: 0 | BB18: 670 | BC18: 0 | BD18: 595 | BE18: 0 | BF18: 775 | BI18: 20 | BJ18: 20 | BK18: 10 | BL18: 10 | BM18: 10 | BN18: 2 | BO18: =IF(BH16>2,10,20) -> 20
B19: Stroke | C19: 2100 | D19: mm | F19: Total length | G19: =C19+Z4+IF(Q13=3,G18,0) -> 2580 | H19: mm | Q19: one single unit | T19: 1 | U19: Horizontal | W19: 1 | X19: =IF(T18=1,"Top or downward"," ") -> Top or downward | AA19: =R103 -> Horizontal mounting, single unit, carriage at top | AQ19: 696 | AR19: 560 | AS19: 581 | AT19: 390 | AU19: 506 | AV19: 750 | AW19: 781 | AX19: 595 | AY19: 681 | AZ19: 425 | BA19: 611 | BB19: 765 | BC19: 891 | BD19: 735 | BE19: 711 | BF19: 915 | BI19: 50 | BJ19: 50 | BK19: 20 | BL19: 20 | BM19: 20 | BN19: 3 | BO19: =IF(BH16>2,20,50) -> 50
C20: =IF(C19>X4,"Longer than standard. Check with plant"," ") ->  | Q20: two units in parallel | T20: 2 | U20: Vertical | W20: 2 | X20: =IF(T18=1,"Sideway"," ") -> Sideway | AQ20: 1336 | AR20: 600 | AS20: 1141 | AT20: 430 | AU20: 1146 | AV20: 790 | AW20: 1536 | AX20: 635 | AY20: 1311 | AZ20: 475 | BA20: 1366 | BB20: 805 | BC20: 1696 | BD20: 805 | BE20: 1516 | BF20: 985 | BK20: 50 | BL20: 50 | BM20: 40 | BN20: 4 | BO20: =IF(BH16<=2," - ",IF(BH16=5,40,50)) -> -
C21: Number of units | AQ21: 2076 | AR21: 650 | AS21: 1806 | AT21: 480 | AU21: 1886 | AV21: 840 | AW21: 2376 | AX21: 685 | AY21: 2066 | AZ21: 515 | BA21: 2206 | BB21: 855 | BC21: 2626 | BD21: 875 | BE21: 2446 | BF21: 1055 | BI21: Dynamic rating of ball screw Cx | BN21: =BN16 -> 1 | BO21: =VLOOKUP(BN21,BN22:BO25,2) -> 10500
A22: =IF(Q18=2,"Distance between linear units"," ") ->  | D22: 800 | X22: Friction factor = | Y22: 0.1 | AQ22: 2781 | AR22: 690 | AS22: 2461 | AT22: 520 | AU22: 2591 | AV22: 880 | AW22: 3206 | AX22: 725 | AY22: 2831 | AZ22: 565 | BA22: 3036 | BB22: 895 | BC22: 3556 | BD22: 945 | BE22: 3376 | BF22: 1125 | BI22: 10500 | BJ22: 10500 | BK22: 12300 | BL22: 12300 | BM22: 21500 | BN22: 1 | BO22: =IF($BH$16<=2,BI22,IF(BH16=5,BM22,BK22)) -> 10500
Q23: Horizontal mounting, single unit, carriage at top | AH23: Fx per unit | AI23: Total Fx at | AQ23: 3546 | AR23: 730 | AS23: 3126 | AT23: 570 | AU23: 3356 | AV23: 920 | AW23: 4046 | AX23: 765 | AY23: 3591 | AZ23: 605 | BA23: 3876 | BB23: 935 | BC23: 4486 | BD23: 1015 | BE23: 4306 | BF23: 1195 | BI23: 11600 | BJ23: 11600 | BK23: 13200 | BL23: 13200 | BM23: 33400 | BN23: 2 | BO23: =IF($BH$16<=2,BI23,IF(BH17=5,BM23,BK23)) -> 11600
C24: Weight of linear drive unit/-s | D24: =Q18*(AN4+G19/100*AO4+IF(Q13=2,AL4,IF(Q13=3,1.5*AM4,AM4))) -> 21.6 | E24: kg | G24: =IF(M33=0," ",IF(C27/2000>#REF!,"OK","Too much")) ->  | Q24: Load torques caused by off center load | W24: at constant | AB24: Max | AH24: during acc | AI24: const. speed | AQ24: 4286 | AR24: 780 | AS24: 3781 | AT24: 610 | AU24: 4096 | AV24: 970 | AW24: 4886 | AX24: 815 | AY24: 4355 | AZ24: 645 | BA24: 4716 | BB24: 985 | BC24: 5416 | BD24: 1085 | BE24: 5236 | BF24: 1265 | BI24: 8400 | BJ24: 8400 | BK24: 13000 | BL24: 13000 | BM24: 29700 | BN24: 3 | BO24: 8400
F25: =IF(M33=0," ","Deflection") ->  | R25: Static | S25: Dynamic | T25: Totally | V25: Friction | W25: speed | Y25: Totally | AB25: allowed | AC25: % of max | AQ25: 5016 | AR25: 820 | AS25: 4446 | AT25: 650 | AU25: 4826 | AV25: 1010 | AW25: 5716 | AX25: 855 | AY25: 5116 | AZ25: 695 | BA25: 5546 | BB25: 1025 | BC25: 6346 | BD25: 1145 | BE25: 6166 | BF25: 1325 | BK25: 15400 | BL25: 15400 | BM25: 14900 | BN25: 4 | BO25: 0
B26: Mounting direction | Q26: Mx = | R26: =$C$49*10*M50/1000 -> 0 | S26: 0 | T26: =Y13*R26+S26+C46 -> 0 | U26: Nm | V26: =T26/AR4*1000*Y22 -> 0.0 | W26: =V26 -> 0.0 | Y26: Fx = | Z26: =C43+(C49+AM4*S13)*C53+AP4*S13+V34 -> 18 | AA26: N | AB26: =AB4 -> 2800 | AH26: =Z26 -> 18 | AI26: =C43+AP4*S13+W34 -> 18 | AQ26: 5756 | AR26: 870 | AS26: 5111 | AT26: 700 | AU26: 5566 | AV26: 1060 | AW26: 6556 | AX26: 905 | AY26: 5871 | AZ26: 735 | BA26: 6386 | BB26: 1075 | BC26: 7286 | BD26: 1215 | BE26: 7106 | BF26: 1395
Q27: My = | R27: =$C$49*10*M49/1000 -> 0 | S27: =C49*C53*M51/1000 -> 0 | T27: =Y13*R27+S27+C47 -> 0 | U27: Nm | V27: =IF(AF18=1,T27*AK13,T27/U13*1000*Y22) -> 0.0 | W27: =IF(AF18=1,(T27-S27)*AK13,(T27-S27)/U13*1000*Y22) -> 0 | Y27: Fy = | Z27: =C44 -> 0 | AA27: N | AB27: =AC4 -> 1400 | AC27: =Z27/AB27 -> 0% | AQ27: 6486 | AR27: 910 | AS27: 5766 | AT27: 740 | AU27: 6296 | AV27: 1100 | AW27: 7386 | AX27: 945 | AY27: 6641 | AZ27: 785 | BA27: 7216 | BB27: 1115 | BC27: 8216 | BD27: 1275 | BE27: 8036 | BF27: 1455 | BH27: Ball nut | BI27: =CONCATENATE(BB4,IF(BO16<10,0,""),BO16,IF(OR(Q4=2,Q4=4),"-S","-D")) -> 2005-S
Q28: Mz = | R28: 0 | S28: =C49*C53*M50/1000 -> 0 | T28: =Y13*R28+S28+C48 -> 0 | U28: Nm | V28: =IF(AF18=1,T28*AK13,T28/U13*1000*Y22) -> 0.0 | W28: =IF(AF18=1,(T28-S28)*AK13,(T28-S28)/U13*1000*Y22) -> 0 | Y28: Fz = | Z28: =C45+C49*10*Y13 -> 0 | AA28: N | AB28: =AD4 -> 1400 | AC28: =Z28/AB28 -> 0% | AQ28: 7251 | AR28: 950 | AS28: 6431 | AT28: 790 | AU28: 7061 | AV28: 1140 | AW28: 8261 | AX28: 985 | AY28: 7396 | AZ28: 825 | BA28: 8091 | BB28: 1155 | BC28: 9241 | BD28: 1345 | BE28: 9061 | BF28: 1525
Y29: Mx = | Z29: =T26 -> 0 | AA29: Nm | AB29: =AE4 -> 50 | AC29: =Z29/AB29 -> 0% | AQ29: 8011 | AR29: 1000 | AS29: 7091 | AT29: 830 | AU29: 7821 | AV29: 1190 | AW29: 9121 | AX29: 1035 | AY29: 8161 | AZ29: 865 | BA29: 8951 | BB29: 1205 | BC29: 10201 | BD29: 1415 | BE29: 10021 | BF29: 1595 | BI29: Idle torque at | BJ29: 150 | BK29: 1500 | BL29: 3000 | BM29: rpm
Q30: Fy = | V30: =Z27*Y22 -> 0 | W30: =V30 -> 0 | Y30: My = | Z30: =T27 -> 0 | AA30: Nm | AB30: =AF4 -> 100 | AC30: =Z30/AB30 -> 0% | AQ30: 8761 | AR30: 1040 | AS30: 7756 | AT30: 870 | AU30: 8571 | AV30: 1230 | AW30: 10046 | AX30: 1075 | AY30: 8926 | AZ30: 915 | BA30: 9876 | BB30: 1245 | BC30: 11001 | BD30: ## | BE30: 11001 | BF30: ## | BJ30: =VLOOKUP($BI$27,$BI$31:$BL$48,2) -> 0.7 | BK30: =VLOOKUP($BI$27,$BI$31:$BL$48,3) -> 1.1 | BL30: =VLOOKUP($BI$27,$BI$31:$BL$48,4) -> 1.5 | BM30: Nm
Q31: Fz = | V31: =Z28*Y22 -> 0 | W31: =V31 -> 0 | Y31: Mz = | Z31: =T28 -> 0 | AA31: Nm | AB31: =AG4 -> 100 | AC31: =Z31/AB31 -> 0% | AQ31: 9521 | AR31: 1090 | AS31: 8420 | AT31: 920 | AU31: 9331 | AV31: 1280 | AW31: 11001 | AX31: ## | AY31: 9731 | AZ31: 955 | BA31: 10831 | BB31: ## | BC31: 15000 | BE31: 15000 | BI31: 2005-D | BJ31: 0.8 | BK31: 1.4 | BL31: 1.8
AQ32: 10271 | AR32: 1130 | AS32: 9076 | AT32: 960 | AU32: 10081 | AV32: 1320 | AW32: 15000 | AY32: 10541 | AZ32: ## | BA32: 15000 | BI32: 2005-S | BJ32: 0.7 | BK32: 1.1 | BL32: 1.5
AB33: Totally | AC33: =SUM(AC27:AC32) -> 0% | AQ33: 11001 | AR33: ## | AS33: 9741 | AT33: 1010 | AU33: 11001 | AV33: ## | AY33: 15000 | BI33: 2020-D | BJ33: 1.3 | BK33: 2 | BL33: 2.3
U34: Totally | V34: =SUM(V26:V33) -> 0.0 | W34: =SUM(W26:W33) -> 0.0 | X34: N | AQ34: 15000 | AS34: 10391 | AT34: ## | AU34: 15000 | BI34: 2020-S | BJ34: 1 | BK34: 1.6 | BL34: 1.8
AS35: 15000 | BI35: 2050-D | BJ35: 1.6 | BK35: 2.4 | BL35: 2.6
BI36: 2050-S | BJ36: 1.4 | BK36: 2 | BL36: 2.2
Q37: Horizontal mounting, 2 units, carriage at top | BI37: 2505-D | BJ37: 1.1 | BK37: 1.7 | BL37: 2.1
Q38: Load torques caused by off center load | AB38: Max | BI38: 2505-S | BJ38: 0.9 | BK38: 1.3 | BL38: 1.7
R39: Static | S39: Dynamic | T39: Totally | V39: Friction | Y39: Totally | AB39: allowed | AC39: % of max | BI39: 2510-D | BJ39: 1.5 | BK39: 2.1 | BL39: 2.5
Q40: Mx = | R40: 0 | S40: 0 | T40: 0 | U40: Nm | V40: 0.0 | W40: 0 | Y40: Fx = | Z40: =C43+T42/D22*1000+(C49+AM4*2)*C53+V48+AP4*2*S13+V41/D22*1000*2 -> 36 | AA40: N | AB40: =2*AB4 -> 5600 | AH40: =Z40*(D22/2+M50)/D22 -> 18 | AI40: =C43+T42/D22*1000+W48+AP4*2*S13+V41/D22*1000*2 -> 36 | BI40: 2510-S | BJ40: 1.1 | BK40: 1.5 | BL40: 1.8
Q41: My = | R41: =C49*10*M49/1000 -> 0 | S41: =C49*C53*M51/1000 -> 0 | T41: =Y13*R41+S41+C47 -> 0 | U41: Nm | V41: =IF(AF18=1,AK13*T41,T41/U13*1000*Y22) -> 0.0 | W41: =IF(AF18=1,AK13*(T41-S41),(T41-S41)/U13*1000*Y22) -> 0 | Y41: Fy = | Z41: =C44 -> 0 | AA41: N | AB41: =AC4*1 -> 1400 | AC41: =Z41/AB41 -> 0% | BI41: 2520-D | BJ41: 1.8 | BK41: 2.3 | BL41: 2.6
Q42: Mz = | R42: 0 | S42: =C49*C53*M50/1000 -> 0 | T42: =Y13*R42+S42+C48 -> 0 | U42: Nm | V42: 0.0 | W42: 0 | Y42: Fz = | Z42: =C45+C49*10*Y13+C46/D22*1000*2 -> 0 | AA42: N | AB42: =AD4*2 -> 2800 | AC42: =Z42/AB42 -> 0% | BI42: 2520-S | BJ42: 1.3 | BK42: 1.8 | BL42: 2
B43: Fx = | C43: 0 | D43: N | E43: =IF(C43>$AB$4*$Q$18,"Too much"," ") ->  | H43: =IF(T18=2," ","Orientation of carriage") -> Orientation of carriage | Y43: Mx = | Z43: =T40 -> 0 | AA43: Nm | AE43: Anser att Mx blir ett kraftpar som ökar Fz | BI43: 2550-D | BJ43: 2.3 | BK43: 3 | BL43: 3.6
B44: Fy = | C44: 0 | D44: N | E44: =IF(C44>AC4*$Q$18,"Too much"," ") ->  | Q44: Fy = | V44: =C44*Y22 -> 0 | W44: =V44 -> 0 | Y44: My = | Z44: =T41 -> 0 | AA44: Nm | AB44: =AF4*2 -> 200 | AC44: =Z44/AB44 -> 0% | BI44: 2550-S | BJ44: 2 | BK44: 2.4 | BL44: 2.9
B45: Fz = | C45: 0 | D45: N | E45: =IF(C45>AD4*$Q$18,"Too much"," ") ->  | Q45: Fz = | V45: =(C49*10*Y13+C45)*Y22 -> 0.0 | W45: =V45 -> 0 | Y45: Mz = | Z45: =T42 -> 0 | AA45: Nm | AE45: Anser att Mz blir ett kraftpar som ökar Fx | BI45: 3205-D | BJ45: 1.4 | BK45: 2.5 | BL45: 3 | CB45: Please note:
B46: Mx = | C46: 0 | D46: Nm | E46: =IF(Q18=2," ",IF(C46>AE4,"Too much"," ")) ->  | BI46: 3210-D | BJ46: 2 | BK46: 3 | BL46: 3.7 | CB46: Fx, Fy, Fz, Mx, My and Mz are external forces and torques and
B47: My = | C47: 0 | D47: Nm | E47: =IF(C47>AF4*$Q$18,"Too much"," ") ->  | AB47: Totally | AC47: =SUM(AC41:AC46) -> 0% | BI47: 3220-D | BJ47: 2.3 | BK47: 3.3 | BL47: 4 | CB47: are not connected with or caused by "Total mass to move"
B48: Mz = | C48: 0 | D48: Nm | E48: =IF(Q18=2," ",IF(C48>$AG$4,"Too much"," ")) ->  | M48: ABS | U48: Totally | V48: =SUM(V40:V47) -> 0.0 | W48: =SUM(W40:W47) -> 0.0 | X48: N | BI48: 3240-D | BJ48: 2.4 | BK48: 3.8 | BL48: 4.3
B49: Total mass to move | C49: 0 | D49: kg in location from top of carriage | H49: Lx = | I49: 0 | J49: mm | M49: =ABS(I49) -> 0
A50: Will this mass be carried by the carriage/carriages? | H50: Ly = | I50: 0 | J50: mm | M50: =ABS(I50) -> 0 | Q50: Horizontal mounting, single unit, carriage sideway
H51: Lz = | I51: 0 | J51: mm | M51: 0 | Q51: Load torques caused by off center load | AB51: Max
B52: Speed | C52: 0.2 | D52: m/s | E52: =IF(C52>AJ4,"Too high speed"," ") ->  | G52: =IF(R112>3001,"Too high rpm "," ") ->  | R52: Static | S52: Dynamic | T52: Totally | V52: Friction | Y52: Totally | AB52: allowed | AC52: % of max
B53: Acceleration | C53: 0.1 | D53: m/s² | E53: =IF(C53>AK4,"Too high acceleration"," ") ->  | Q53: Mx = | R53: =C49*10*M51/1000 -> 0 | S53: 0 | T53: =Y13*R53+C46 -> 0 | U53: Nm | V53: =T53/AR4*1000*Y22 -> 0.0 | W53: =V53 -> 0.0 | Y53: Fx = | Z53: =C43+(C49+AM4)*C53+AP4*S13+V61 -> 18 | AA53: N | AB53: =AB4 -> 2800 | AH53: =Z53 -> 18 | AI53: =C43+AP4*S13+W61 -> 18
Q54: My = | R54: 0 | S54: =C49*C53*M51/1000 -> 0 | T54: =S54+C47 -> 0 | U54: Nm | V54: =IF(AF18=1,AK13*T54,T54/U13*1000*Y22) -> 0.0 | W54: =IF(AF18=1,AK13*(T54-S54),(T54-S54)/U13*1000*Y22) -> 0.0 | Y54: Fy = | Z54: =C44+Y13*C49*10 -> 0 | AA54: N | AB54: =AC4 -> 1400 | AC54: =Z54/AB54 -> 0%
A55: Move profile over | C55: 2000 | D55: mm stroke | F55: =IF(C55>C19,"This is longer than stroke of unit !"," ") ->  | Q55: Mz = | R55: =C49*10*M49/1000 -> 0 | S55: =C49*C53*M50/1000 -> 0 | T55: =Y13*R55+S55+C48 -> 0 | U55: Nm | V55: =IF(AF18=1,AK13*T55,T55/AQ4*1000*Y22) -> 0.0 | W55: =IF(AF18=1,AK13*(T55-S55),(T55-S55)/AQ4*1000*Y22) -> 0.0 | Y55: Fz = | Z55: =C45 -> 0 | AA55: N | AB55: =AD4 -> 1400 | AC55: =Z55/AB55 -> 0%
Y56: Mx = | Z56: =T53 -> 0 | AA56: Nm | AB56: =AE4 -> 50 | AC56: =Z56/AB56 -> 0%
A57: Time to move one direction | Q57: Fy = | V57: =Z54*Y22 -> 0 | W57: =V57 -> 0 | Y57: My = | Z57: =T54 -> 0 | AA57: Nm | AB57: =AF4 -> 100 | AC57: =Z57/AB57 -> 0%
C58: =Blad2!C14 -> 12.00 | D58: sec | Q58: Fz = | V58: =C45*Y22 -> 0 | W58: =V58 -> 0 | Y58: Mz = | Z58: =T55 -> 0 | AA58: Nm | AB58: =AG4 -> 100 | AC58: =Z58/AB58 -> 0%
A60: =Blad2!A17 ->  | AB60: Totally | AC60: =SUM(AC54:AC59) -> 0%
A61: =Blad2!A18 ->  | C61: =Blad2!C18 ->  | D61: =Blad2!D18 ->  | U61: Totally | V61: =SUM(V53:V60) -> 0.0 | W61: =SUM(W53:W60) -> 0.0 | X61: N
Q63: Horizontal mounting, two units, carriages sideway
Q64: Load torques caused by off center load | AB64: Max
R65: Static | S65: Dynamic | T65: Totally | V65: Friction | Y65: Totally | AB65: allowed | AC65: % of max
Q66: Mx = | R66: 0 | S66: 0 | T66: 0 | U66: Nm | V66: 0.0 | W66: 0 | Y66: Fx = | Z66: =C43+V74+T68/D22*1000+(C49+AM4*2*S13)*C53 -> 0 | AA66: N | AB66: =AB4*2 -> 5600 | AH66: =Z66*(D22/2+M50)/D22 -> 0.1 | AI66: =C43+V75 -> 0
Q67: My = | R67: 0 | S67: =C49*C53*M51/1000 -> 0 | T67: =C47+S67 -> 0 | U67: Nm | V67: =IF(AF18=1,AK13*T67,T67/U13*1000*Y22) -> 0.0 | W67: =IF(AF18=1,AK13*(T67-S67),(T67-S67)/U13*1000*Y22) -> 0 | Y67: Fy = | Z67: =C44+C49*10*Y13 -> 0 | AA67: N | AB67: =AC4 -> 1400 | AC67: =Z67/AB67 -> 0%
Q68: Mz = | R68: =C49*10*M49/1000 -> 0 | S68: =C49*C53*M50/1000 -> 0 | T68: =Y13*R68+S68+C48 -> 0 | U68: Nm | V68: 0.0 | W68: 0 | Y68: Fz = | Z68: =C45+Y13*C49*10*M51/1000/D22*1000+C46/D22*1000 -> 0 | AA68: N | AB68: =AD4*2 -> 2800 | AC68: =Z68/AB68 -> 0%
Y69: Mx = | Z69: 0 | AA69: Nm | AD69: Anser att Mx blir ett kraftpar som ökar Fz
Q70: Fy = | V70: =Z67*Y22 -> 0 | W70: =V70 -> 0 | Y70: My = | Z70: =T67 -> 0 | AA70: Nm | AB70: =AF4*2 -> 200 | AC70: =Z70/AB70 -> 0%
A71: =R103 -> Horizontal mounting, single unit, carriage at top | Q71: Fz = | V71: =Z68*Y22 -> 0.0 | W71: =V71 -> 0.0 | Y71: Mz = | Z71: =T68 -> 0 | AA71: Nm | AD71: Anser att Mz blir ett kraftpar som ökar Fx
B73: Result: | D73: Allowed | AB73: Totally | AC73: =SUM(AC67:AC72) -> 0%
A74: Fx = | B74: =X103 -> 18 | C74: N | D74: =Y103 -> 2800 | E74: N | F74: =IF(B74>D74,"Too much !"," ") ->  | U74: Totally | V74: =SUM(V66:V73) -> 0.0 | W74: =SUM(W66:W73) -> 0.0 | X74: N
A75: Fy = | B75: =Z103 -> 0 | C75: N | D75: =AA103 -> 1400 | E75: N
A76: Fz = | B76: =AB103 -> 0 | C76: N | D76: =AC103 -> 1400 | E76: N | Q76: Vertical mounting, single unit
A77: Mx = | B77: =AD103 -> 0 | C77: Nm | D77: =AE103 -> 50 | E77: Nm | Q77: Load torques caused by off center load | AB77: Max
A78: My = | B78: =AF103 -> 0 | C78: Nm | D78: =AG103 -> 100 | E78: Nm | R78: Static | S78: Dynamic | T78: Totally | V78: Friction | Y78: Totally | AB78: allowed | AC78: % of max
A79: Mz = | B79: =AH103 -> 0 | C79: Nm | D79: =AI103 -> 100 | E79: Nm | Q79: Mx = | R79: 0 | S79: 0 | T79: =C46 -> 0 | U79: Nm | V79: =T79/AR4*1000*Y22 -> 0.0 | W79: =V79 -> 0.0 | Y79: Fx = | Z79: =C43+(C49+AM4*S13)*C53+AP4*S13+V87+C49*10 -> 18 | AA79: N | AB79: =AB4 -> 2800 | AH79: =Z79 -> 18 | AI79: =C43+AP4*S13+W87+C49*10 -> 18
F80: Total dynamic load combined all directions (apart of Fx) | G80: =AJ103 -> 0% | Q80: My = | R80: =C49*10*M51/1000 -> 0 | S80: =C49*C53*M51/1000 -> 0 | T80: =Y13*R80+S80+C47 -> 0 | U80: Nm | V80: =IF(AF18=1,AK13*T80,T80/U13*1000*Y22) -> 0.0 | W80: =IF(AF18=1,AK13*(R80+C47),(R80+C47)/U13*1000*Y22) -> 0 | Y80: Fy = | Z80: =C44 -> 0 | AA80: N | AB80: =AC4 -> 1400 | AC80: =Z80/AB80 -> 0%
B81: =IF(AJ103>1,"The total load is too much ! Select bigger unit or another configuration.",IF(B74>D74,"The axial force is too much ! Select bigger unit or another configuration."," ")) ->  | Q81: Mz = | R81: =C49*10*M50/1000 -> 0 | S81: =C49*C53*M50/1000 -> 0 | T81: =Y13*R81+S81+C48 -> 0 | U81: Nm | V81: =IF(AF18=1,AK13*T81,T81/U13*1000*Y22) -> 0.0 | W81: =IF(AF18=1,AK13*(C48+R81),(C48+R81)/U13*1000*Y22) -> 0 | Y81: Fz = | Z81: =C45 -> 0 | AA81: N | AB81: =AD4 -> 1400 | AC81: =Z81/AB81 -> 0%
Y82: Mx = | Z82: =T79 -> 0 | AA82: Nm | AB82: =AE4 -> 50 | AC82: =Z82/AB82 -> 0%
B83: Designation: | C83: =CONCATENATE(AS4,"0",IF(BO16<10,0,""),BO16,IF(C19<1000,"-00",IF(C19<10000,"-0","-")),C19,IF(G19<1000,"-00",IF(G19<10000,"-0","-")),G19,"x",W13,IF(Q13<3,"-0000",-G18)) -> WM06S005-02100-02580xS-0000 | Q83: Fy = | V83: =C44*Y22 -> 0 | W83: =V83 -> 0 | Y83: My = | Z83: =T80 -> 0 | AA83: Nm | AB83: =AF4 -> 100 | AC83: =Z83/AB83 -> 0%
Q84: Fz = | V84: =C45*Y22 -> 0 | W84: =V84 -> 0 | Y84: Mz = | Z84: =T81 -> 0 | AA84: Nm | AB84: =AG4 -> 100 | AC84: =Z84/AB84 -> 0%
B85: Calculation of lifetime
AB86: Totally | AC86: =SUM(AC80:AC85) -> 0%
C87: Average load factor fm | D87: 1 | U87: Totally | V87: =SUM(V79:V86) -> 0.0 | W87: =SUM(W79:W86) -> 0.0 | X87: N
C88: Ball guide | D88: =IF(R116<100000,R116,"> 100 000") -> > 100 000 | E88: h | F88: =IF(P116>5*10^7,">50 000",P116/1000) -> >50 000 | G88: km
C89: Ball screw | D89: =IF(T119<100000,T119,"> 100 000") -> > 100 000 | E89: h | F89: =IF(R119>5*10^7,">50 000",R119/1000) -> >50 000 | G89: km | Q89: Vertical mounting, two units
C90: Ball bearing drive end | D90: =IF(T122<100000,T122,"> 100 000") -> > 100 000 | E90: h | F90: =IF(R122>5*10^7,">50 000",R122/1000) -> >50 000 | G90: km | Q90: Load torques caused by off center load | AB90: Max
R91: Static | S91: Dynamic | T91: Totally | V91: Friction | Y91: Totally | AB91: allowed | AC91: % of max
C92: number of cycles per minute | D92: 1 | F92: Duty cycle | G92: =D92*2*C58/60 -> 40% | H92: =IF(G92>1,"Not possible !"," ") ->  | Q92: Mx = | R92: 0 | S92: 0 | T92: 0 | U92: Nm | V92: =C46/D22*1000*Y22 -> 0.0 | W92: =V92 -> 0.0 | Y92: Fx = | Z92: =C43+C49*10+2*AM4*S13+2*AP4*S13+T94/D22*1000+(C49+2*AM4*S13)*C53 -> 38 | AA92: N | AB92: =AB4*2 -> 5600 | AH92: =Z92*(D22/2+M50)/D22 -> 19 | AI92: =C43+C49*10+2*AM4*S13+2*AP4*S13 -> 38
C93: Working hours per day | D93: 8 | Q93: My = | R93: =C49*M51*10/1000 -> 0 | S93: =C49*C53*M51/1000 -> 0 | T93: =Y13*R93+S93+C47 -> 0 | U93: Nm | V93: =IF(AF18=1,AK13*T93,T93/U13*1000*Y22) -> 0.0 | W93: =IF(AF18=1,AK13*(R93+C47),(R93+C47)/U13*1000*Y22) -> 0 | Y93: Fy = | Z93: =C44 -> 0 | AA93: N | AB93: =AC4 -> 1400 | AC93: =Z93/AB93 -> 0%
C94: Working days per year | D94: 220 | Q94: Mz = | R94: =C49*10*M50/1000 -> 0 | S94: =C49*C53*M50/1000 -> 0 | T94: =Y13*R94+S94+C48 -> 0 | U94: Nm | V94: 0.0 | W94: 0 | Y94: Fz = | Z94: =C45+C46/D22*1000*2 -> 0 | AA94: N | AB94: =AD4*2 -> 2800 | AC94: =Z94/AB94 -> 0%
Y95: Mx = | Z95: 0 | AA95: Nm | AD95: Anser att Mx blir ett kraftpar som ökar Fz
C96: Lifetime | D96: =IF(P116*10^3/C55/2/D92/60/D93/D94>50,"> 50",P116*10^3/C55/2/D92/60/D93/D94) -> > 50 | E96: Years | F96: Ball guide | Q96: Fy = | V96: =C44*Y22 -> 0 | W96: =V96 -> 0 | Y96: My = | Z96: =T93 -> 0 | AA96: Nm | AB96: =AF4*2 -> 200 | AC96: =Z96/AB96 -> 0%
D97: =IF(V119>50,"> 50",V119) -> > 50 | E97: Years | F97: Ball screw | Q97: Fz = | V97: =Z94*Y22 -> 0 | W97: =V97 -> 0 | Y97: Mz = | Z97: =T94 -> 0 | AA97: Nm | AD97: Anser att Mz blir ett kraftpar som ökar Fx
D98: =IF(V122>50,"> 50",V122) -> > 50 | E98: Years | F98: Ball bearing drive end
AB99: Totally | AC99: =SUM(AC93:AC98) -> 0%
U100: Totally | V100: =SUM(V92:V99) -> 0.0 | W100: =SUM(W92:W99) -> 0.0 | X100: N | AG100: klart hit | AM100: Total Fx at const speed | AN100: Total Fx during acc
C101: Idle torque at no load | D101: =N135 -> 0.86 | E101: Nm and | F101: =R112 -> 2,400 | G101: rpm at | H101: =C52 -> 0.2 | I101: m/s | AK101: Max Fx
X102: Fx | Z102: Fy | AB102: Fz | AD102: Mx | AF102: My | AH102: Mz | AJ102: Total | AK102: one unit
C103: Drive torque at constant speed | D103: =P145 -> 0.88 | E103: Nm and | F103: =D103*R112/9.55 -> 220 | G103: W | R103: =VLOOKUP($AA$18,$Q$104:R109,2) -> Horizontal mounting, single unit, carriage at top | S103: =VLOOKUP($AA$18,$Q$104:S109,2) -> Horizontal mounting, single unit, carriage at top | X103: =VLOOKUP($AA$18,$Q$104:X109,8) -> 18 | Y103: =VLOOKUP($AA$18,$Q$104:Y109,9) -> 2800 | Z103: =VLOOKUP($AA$18,$Q$104:Z109,10) -> 0 | AA103: =VLOOKUP($AA$18,$Q$104:AA109,11) -> 1400 | AB103: =VLOOKUP($AA$18,$Q$104:AB109,12) -> 0 | AC103: =VLOOKUP($AA$18,$Q$104:AC109,13) -> 1400 | AD103: =VLOOKUP($AA$18,$Q$104:AD109,14) -> 0 | AE103: =VLOOKUP($AA$18,$Q$104:AE109,15) -> 50 | AF103: =VLOOKUP($AA$18,$Q$104:AF109,16) -> 0 | AG103: =VLOOKUP($AA$18,$Q$104:AG109,17) -> 100 | AH103: =VLOOKUP($AA$18,$Q$104:AH109,18) -> 0 | AI103: =VLOOKUP($AA$18,$Q$104:AI109,19) -> 100 | AJ103: =VLOOKUP($AA$18,$Q$104:AJ109,20)+0.001 -> 0% | AK103: =VLOOKUP($AA$18,$Q$104:AK109,21) -> 18.1 | AL103: =VLOOKUP($AA$18,$Q$104:AL109,22) -> 0.0 | AM103: =VLOOKUP($AA$18,$Q$104:AM109,23) -> 18.0 | AN103: =VLOOKUP($AA$18,$Q$104:AN109,24) -> 18.1
C104: Drive torque during acc | D104: =P146 -> 0.90 | E104: Nm and | F104: =D104*R112/9.55 -> 227 | G104: W | Q104: 1 | R104: Horizontal mounting, single unit, carriage at top | X104: =Z26 -> 18 | Y104: =AB26 -> 2800 | Z104: =Z27 -> 0 | AA104: =AB27 -> 1400 | AB104: =Z28 -> 0 | AC104: =AB28 -> 1400 | AD104: =Z29 -> 0 | AE104: =AB29 -> 50 | AF104: =Z30 -> 0 | AG104: =AB30 -> 100 | AH104: =Z31 -> 0 | AI104: =AB31 -> 100 | AJ104: =AC33 -> 0% | AK104: =AH26 -> 18.1 | AL104: =AF33 -> 0.0 | AM104: =AI26 -> 18.0 | AN104: =AH26 -> 18.1
C105: System inertia | D105: =S154 -> 0.0002189012574 | E105: kg m² (excluding gear, motor etc) | Q105: 2 | R105: Horizontal mounting, 2 units, carriage at top | X105: =Z40 -> 36 | Y105: =AB40 -> 5600 | Z105: =Z41 -> 0 | AA105: =AB41 -> 1400 | AB105: =Z42 -> 0 | AC105: =AB42 -> 2800 | AD105: =IF(Z43=0," - ",Z43) -> - | AE105: =IF(AB43=0," - ",AB43) -> - | AF105: =Z44 -> 0 | AG105: =AB44 -> 200 | AH105: =Z45 -> 0 | AI105: =IF(AB45=0," - ",AB45) -> - | AJ105: =AC47 -> 0% | AK105: =AH40 -> 18.1 | AL105: =AF47 -> 0 | AM105: =AI40 -> 36.0 | AN105: =AH40*2 -> 36.2
B106: =IF(AND(Q18=1,P146>AI4),"Too high drive torque",IF(AND(Q18=2,P146>2*AI4),"Too high drive torque"," ")) ->  | Q106: 3 | R106: Horizontal mounting, single unit, carriage sideway | X106: =Z53 -> 18 | Y106: =AB53 -> 2800 | Z106: =Z54 -> 0 | AA106: =AB54 -> 1400 | AB106: =Z55 -> 0 | AC106: =AB55 -> 1400 | AD106: =Z56 -> 0 | AE106: =AB56 -> 50 | AF106: =Z57 -> 0 | AG106: =AB57 -> 100 | AH106: =Z58 -> 0 | AI106: =AB58 -> 100 | AJ106: =AC60 -> 0% | AK106: =AH53 -> 18.1 | AL106: =AF60 -> 0.0 | AM106: =AI53 -> 18.0 | AN106: =AH53 -> 18.1
Q107: 4 | R107: Horizontal mounting, two units, carriages sideway | X107: =Z66 -> 0 | Y107: =AB66 -> 5600 | Z107: =Z67 -> 0 | AA107: =AB67 -> 1400 | AB107: =Z68 -> 0 | AC107: =AB68 -> 2800 | AD107: =IF(Z69=0," - ",Z69) -> - | AE107: =IF(AB69=0," - ",AB69) -> - | AF107: =Z70 -> 0 | AG107: =AB70 -> 200 | AH107: =Z71 -> 0 | AI107: =IF(AB71=0," - ",AB71) -> - | AJ107: =AC73 -> 0% | AK107: =AH66 -> 0.1 | AL107: =AF73 -> 0 | AM107: =AI66 -> 0.0 | AN107: =AH66*2 -> 0.2
B108: Gear / Motor | Q108: 5 | R108: Vertical mounting, single unit | X108: =Z79 -> 18 | Y108: =AB79 -> 2800 | Z108: =Z80 -> 0 | AA108: =AB80 -> 1400 | AB108: =Z81 -> 0 | AC108: =AB81 -> 1400 | AD108: =Z82 -> 0 | AE108: =AB82 -> 50 | AF108: =Z83 -> 0 | AG108: =AB83 -> 100 | AH108: =Z84 -> 0 | AI108: =AB84 -> 100 | AJ108: =AC86 -> 0% | AK108: =AH79 -> 18.1 | AL108: =AF86 -> 0.0 | AM108: =AI79 -> 18 | AN108: =AH79 -> 18.1
Q109: 6 | R109: Vertical mounting, two units | X109: =Z92 -> 38 | Y109: =AB92 -> 5600 | Z109: =Z93 -> 0 | AA109: =AB93 -> 1400 | AB109: =Z94 -> 0 | AC109: =AB94 -> 2800 | AD109: =IF(Z95=0," - ",Z95) -> - | AE109: =IF(AB95=0," - ",AB95) -> - | AF109: =Z96 -> 0 | AG109: =AB96 -> 200 | AH109: =Z97 -> 0 | AI109: =AB97 -> 0 | AJ109: =AC99 -> 0% | AK109: =AH92 -> 19.1 | AL109: =AF99 -> 0 | AM109: =AI92 -> 38 | AN109: =AH92*2 -> 38.2
C111: =IF($L$253=2,"Ratio"," ") ->  | D111: 2
C112: =IF($L$253=2,"Effiency factor"," ") ->  | D112: 95% | Q112: rpm ball screw | R112: =$C$52*1000/BO16*60 -> 2400 | T112: motor speed | U112: =R112*IF(L253=1,1,D111) -> 2400 | V112: rpm
C113: =IF($L$253=2,"Idle torque"," ") ->  | D113: 0.1 | E113: =IF($L$253=2,"Nm"," ") -> 
C114: =IF($L$253=2,"Inertia"," ") ->  | D114: 5e-05 | E114: =IF($L$253=2,"kg m²"," ") ->  | F114: =IF(AND(L253=2,Q18=2),"Total inertia for gears and parallel shaft"," ") ->  | N114: Calculation of lifetime. | Q114: The lifetime of the ball guides will be based on the total % of load in all directions and the max allowed Fz load compared to Cz value for the ball guides
N115: Lh ball guide = (C / ( Fz x %))^3 x 10^5 m
N116: Lifetime ball guide = | P116: =(AU4*Q18*T18/(AD4+AT4)/AJ103/D87)^3*10^5 -> 2.767587264e+17 | Q116: m | R116: =P116/C52/3600 -> 3.8438712e+14 | S116: h
N118: Lh ball screw = (C / Fx)^3 x 10^6 revolutions
C119: =IF(OR(L257=2,L257=3),"Nominal torque",IF(L257=4,"Holding torque"," ")) -> Nominal torque | D119: =IF(L257=2,Q197,IF(L257=3,R168,IF(L257=4,O225," "))) -> 2.6 | E119: =IF(L257=2,"Nm",IF(L257=3,"Nm at max speed",IF(L257=4,"Nm"," "))) -> Nm | N119: Lifetime ball screw = | P119: =(AW4/(AK103+AX4)/D87)^3*10^6 -> 1.952235351e+14 | Q119: rev = | R119: =P119*BO16/1000 -> 9.761176753e+11 | S119: m = | T119: =R119/C52/3600 -> 1,355,718,993 | U119: h | V119: =R119*1000/C55/2/D92/60/D93/D94 -> 2310884.6
C120: =IF($L$257=2,"Nominal speed",IF($L$257=3,"Peak torque"," ")) -> Nominal speed | D120: =IF(L257=2,O197,IF(L257=3,S168," ")) -> 1370 | E120: =IF($L$257=2,"rpm",IF($L$257=3,"Nm"," ")) -> rpm
C121: =IF($L$257=2,"Nominal power",IF($L$257=3,"Max speed"," ")) -> Nominal power | D121: =IF(L257=2,P197,IF(L257=3,O168," ")) -> 0.37 | E121: =IF($L$257=2,"kW",IF($L$257=3,"rpm"," ")) -> kW
C122: =IF(L257=3,"Nominal power"," ") ->  | D122: =IF(L257=3,P168," ") ->  | E122: =IF(L257=3,"kW"," ") ->  | N122: Lifetime ball bearing = | P122: =(BA4/(AY4+AK103)/D87)^3*10^6 -> 5.926705281e+10 | Q122: rev = | R122: =P122*BO16/1000 -> 296335264 | S122: m = | T122: =R122/C52/3600 -> 411,577 | U122: h | V122: =R122*1000/C55/2/D92/60/D93/D94 -> 701.6
C123: =IF(L257=5,"Customer motor data:"," ") ->  | D123: Supplier, torque, power, rpm etc | AC123: =2*0.19*10^-4+1.35*10^-6 -> 3.935e-05
AC124: =2*0.78*10^-4+6.7*10^-6 -> 0.0001627
N125: Efficieny factor ball nut = | O125: 90% | AB125: =2*4.18*10^-4+6.7*10^-6 -> 0.0008427 | AC125: =2*184*10^-6+15*10^-6 -> 0.000383
C127: =IF(L257=5,"Motor inertia:"," ") ->  | D127: 0.0003 | E127: =IF(L257=5,"kg m²"," ") -> 
Y128: =IF(Q4<=2,2,IF(Q4=5,4,3)) -> 2 | AB128: kg m²
B129: Required motor data | AA129: =VLOOKUP(Y128,Z130:AB133,2) -> GS19 | AB129: =VLOOKUP(Y128,Z130:AB133,3) -> 3.9e-05
C130: Torque at constant speed | D130: =Z145 -> 0.88 | E130: Nm | L130: =BI29 -> Idle torque at | M130: 150 | N130: 1500 | O130: 3000 | P130: rpm | Z130: 1 | AA130: GS14 | AB130: =0.0000065 -> 6.5e-06
C131: Torque during acceleration | D131: =Z146 -> 1.02 | E131: Nm | L131: 0 | M131: 0.7 | N131: 1.1 | O131: 1.5 | P131: Nm | Y131: WM60 | Z131: 2 | AA131: GS19 | AB131: 3.9e-05
C132: Power at constant speed | D132: =D130*D134/9550 -> 0.22 | E132: kW | Y132: WM80 | Z132: 3 | AA132: GS24 | AB132: 0.000163
C133: Power during acceleration | D133: =D131*D134/9550 -> 0.26 | E133: kW | F133: =D134/D120*50 -> 88 | G133: =IF(L257=2,"Hz"," ") -> Hz | L133: Idle torque Nm | N133: =IF(R112<=150,M131,IF(AND(R112>150,R112<=1500),M131+(R112-150)/1350*(N131-M131),N131+(R112-1500)/(Q129-1500)*(O131-N131))) -> 0.86 | O133: Single unit, single carriage | Y133: WM120 | Z133: 4 | AA133: GS28 | AB133: 0.00038
C134: Max speed | D134: =U112 -> 2,400 | E134: rpm | N134: =(S13-1)*AP4*BO16/2/1000/PI()/0.9 -> 0.00 | O134: additional carriage
C135: Inertia balance | D135: =R161 -> 1.3 | M135: Totally | N135: =(N134+N133)*Q18 -> 0.86 | O135: Nm per unit
A137: Notes:
L145: Drive torque during constant speed | P145: =N135+AM103*BO16/2/1000/O125/PI() -> 0.8759154943 | Q145: Nm | V145: Motor torque during costant speed | Z145: =IF(L253=1,P145/0.99,P145/D111/D112+D113) -> 0.8847631256 | AA145: Nm | AC145: Här är lite frågetecken, eller nej?
L146: Drive torque during acceleration | P146: =N135+AN103*BO16/2/1000/O125/PI()+Q18*BC4*G19/1000*PI()*R112/30/C52*C53 -> 0.9034322795 | Q146: Nm (including ball screw inertia) | V146: Motor torque duringacceleration | Z146: =AC155+Z145 -> 1.019 | AA146: Nm including inertia and losses in gear
P149: =P146-P145 -> 0.02751678523 | AF149: 1
AA150: Drive | AC150: motor | AF150: Guide for selection of fm factor
L151: Linear inertia from load and carries: | Q151: m x ( m/min / 2π / rpm ) ^2 = | T151: =(C49+AM4*S13*Q18)*(C52*60/2/PI()/R112)^2 -> 6.332573978e-07 | U151: kg m² | AA151: shaft | AC151: shaft | AF151: fm = 1,0 ; The same load in both directions
L152: Inertia ball screw | T152: =BC4*G19/1000*Q18 -> 0.000218 | U152: kg m² | Y152: Inertia | AA152: =S154 -> 0.0002189012574 | AB152: kgm² | AC152: =IF(L253=1,S154+T156+T158,(S154+T156)/D111^2/D112+T157+T158) -> 0.001067901257 | AD152: kgm² | AF152: fm = 0,89 ; Full load forward, 75% load back
Y153: Top speed | AA153: =R112 -> 2400 | AB153: rpm | AC153: =U112 -> 2400 | AD153: rpm | AF153: fm = 0,81 ; Full load forward, 50% load back
S154: =SUM(T151:T152) -> 0.0002189012574 | Y154: Acceleration time | AA154: =C52/C53 -> 2 | AB154: sec | AC154: =AA154 -> 2 | AD154: sec | AF154: fm = 0,8 ; Full load forward, no load back
AA155: =AA152*3.14*AA153/30/AA154 -> 0.027 | AB155: Nm | AC155: =AC152*3.14*AC153/30/AC154 -> 0.134 | AD155: Nm | AF155: fm = 0,48 ; Full load 10% of the stroke forward and 20% rest of cycle
L156: Inertia coupling | T156: =AB129*Q18 -> 3.9e-05
L157: Inertia gear | T157: =IF(L253=2,D114,0) -> 0
L158: Inertia motor | T158: =IF(L257=1,0,IF(L257=2,R197,IF(L257=3,V168,IF(L257=4,P225,IF(L257=5,D127,0))))) -> 0.00081
M160: Total inertia reduced to motor shaft | S160: =(S154+T156)/IF(L253=1,1,D111^2)+T157+T158 -> 0.001067901257
M161: Inertia balance | R161: =S160/T158 -> 1.318396614
L165: 1 | M165: 2 | N165: 3 | O165: 4 | P165: 5 | Q165: 6 | R165: 7 | S165: 8 | T165: 9 | U165: 10 | V165: 11 | W165: 12 | X165: 13 | Y165: 14
M167: AKM servo motor | O167: nom rpm | P167: kW | Q167: nom Nm | R167: Nm at max rpm | S167: Peak Nm | T167: Inertia | U167: Brake inertia | W167: Nm/A | X167: mVmin | Y167: Ohm
M168: =VLOOKUP($L$265,$L$169:M192,M$165) -> AKM44G | N168: =VLOOKUP($L$265,$L$169:N192,N165) -> 0 | O168: =VLOOKUP($L$265,$L$169:O192,O165) -> 4000 | P168: =VLOOKUP($L$265,$L$169:P192,P165) -> 1.57 | Q168: =VLOOKUP($L$265,$L$169:Q192,Q165) -> 5.88 | R168: =VLOOKUP($L$265,$L$169:R192,R165) -> 3.76 | S168: =VLOOKUP($L$265,$L$169:S192,S165) -> 20.2 | T168: =VLOOKUP($L$265,$L$169:T192,T165) -> 0.00027 | U168: =VLOOKUP($L$265,$L$169:U192,U165) -> 6.8e-06 | V168: =VLOOKUP($L$265,$L$169:V192,V165) -> 0.0002768 | W168: =VLOOKUP($L$265,$L$169:W192,W165) -> 1.19 | X168: =VLOOKUP($L$265,$L$169:X192,X165) -> 76.6 | Y168: =VLOOKUP($L$265,$L$169:Y192,Y165) -> 2.65
L169: 1 | M169: AKM31C | O169: 5000 | P169: 0.52 | Q169: 1.15 | R169: 1 | S169: 3.88 | T169: 3.3e-05 | U169: 1.2e-06 | V169: =IF($O$257=2,T169+U169,T169) -> 3.42e-05 | W169: 0.85 | X169: 54.5 | Y169: 21.4
L170: 2 | M170: AKM32C | O170: 3000 | P170: 0.58 | Q170: 2 | R170: 1.86 | S170: 6.92 | T170: 5.9e-05 | U170: 1.2e-06 | V170: 6.02e-05 | W170: 1.4 | X170: 89.8 | Y170: 23
L171: 3 | M171: AKM33E | O171: 4500 | P171: 1.1 | Q171: 2.79 | R171: 2.34 | S171: 9.96 | T171: 0.000085 | U171: 1.2e-06 | V171: 8.62e-05 | W171: 1.1 | X171: 70.6 | Y171: 8.36
L172: 4 | M172: AKM41C | O172: 3000 | P172: 0.56 | Q172: 1.95 | R172: 1.77 | S172: 6.12 | T172: 8.1e-05 | U172: 6.8e-06 | V172: 8.78e-05 | W172: 1.34 | X172: 86.3 | Y172: 21.7
L173: 5 | M173: AKM42E | O173: 3500 | P173: 1.03 | Q173: 3.42 | R173: 2.81 | S173: 11.3 | T173: 0.00015 | U173: 6.8e-06 | V173: 0.0001568 | W173: 1.26 | X173: 80.9 | Y173: 7.22
L174: 6 | M174: AKM43E | O174: 2500 | P174: 1.03 | Q174: 4.7 | R174: 3.92 | S174: 15.9 | T174: 0.00021 | U174: 6.8e-06 | V174: 0.0002168 | W174: 1.72 | X174: 111 | Y174: 8.04
L175: 7 | M175: AKM44G | O175: 4000 | P175: 1.57 | Q175: 5.88 | R175: 3.76 | S175: 20.2 | T175: 0.00027 | U175: 6.8e-06 | V175: 0.0002768 | W175: 1.19 | X175: 76.6 | Y175: 2.65
L176: 8 | M176: AKM51E | O176: 2500 | P176: 1.04 | Q176: 4.7 | R176: 3.98 | S176: 11.6 | T176: 0.00034 | U176: 1.7e-05 | V176: 0.000357 | W176: 1.72 | X176: 110 | Y176: 8.47
L177: 9 | M177: AKM52G | O177: 2500 | P177: 1.85 | Q177: 8.43 | R177: 7.06 | S177: 21.5 | T177: 0.00062 | U177: 1.7e-05 | V177: 0.000637 | W177: 1.79 | X177: 115 | Y177: 3.47
L178: 10 | M178: AKM53K | O178: 4000 | P178: 3.2 | Q178: 11.6 | R178: 7.65 | S178: 30.1 | T178: 0.00091 | U178: 1.7e-05 | V178: 0.000927 | W178: 1.24 | X178: 79.8 | Y178: 1
L179: 11 | M179: AKM54K | O179: 3500 | P179: 3.68 | Q179: 14.4 | R179: 10.05 | S179: 38.4 | T179: 0.0012 | U179: 1.7e-05 | V179: 0.001217 | W179: 1.5 | X179: 96.6 | Y179: 1.02
L180: 12 | M180: AKM62K | O180: 3500 | P180: 3.3 | Q180: 12.2 | R180: 9 | S180: 30.1 | T180: 0.0017 | U180: 6.1e-05 | V180: 0.001761 | W180: 1.28 | X180: 82.1 | Y180: 1.05
L181: 13 | M181: AKM63K | O181: 3000 | P181: 4.05 | Q181: 16.8 | R181: 12.9 | S181: 42.6 | T181: 0.0024 | U181: 6.1e-05 | V181: 0.002461 | W181: 1.71 | X181: 110 | Y181: 1.09
L182: 14 | M182: AKM64L | O182: 3000 | P182: 4.9 | Q182: 21 | R182: 15.6 | S182: 54.1 | T182: 0.0032 | U182: 6.1e-05 | V182: 0.003261 | W182: 1.66 | X182: 107 | Y182: 0.71
L183: 15 | M183: AKM65M | O183: 2500 | P183: 5.03 | Q183: 25 | R183: 19.2 | S183: 65.2 | T183: 0.004 | U183: 6.1e-05 | V183: 0.004061 | W183: 1.85 | X183: 119 | Y183: 0.68
L184: 16
L185: 17
L186: 18
L187: 19
L188: 20
L189: 21
L190: 22
L191: 23
L192: 24
M196: AC motors | O196: rpm | P196: kW | Q196: Nm | R196: Kgm2
M197: =VLOOKUP($L$265,$L$198:M221,M$165) -> IEC71 1500 rpm 0,37 kW | O197: =VLOOKUP($L$265,$L$198:O221,O$165) -> 1370 | P197: =VLOOKUP($L$265,$L$198:P221,P$165) -> 0.37 | Q197: =VLOOKUP($L$265,$L$198:Q221,Q$165) -> 2.630597372 | R197: =VLOOKUP($L$265,$L$198:R221,R$165) -> 0.00081
L198: 1 | M198: IEC 63 3000 rpm 0,25 kW | O198: 2750 | P198: 0.25 | Q198: =71620*1.36*P198/O198/10 -> 0.9 | R198: 0.00023
L199: 2 | M199: IEC 63 with brake 3000 rpm 0,25 kW | O199: 2750 | P199: 0.25 | Q199: 0.9 | R199: 0.00025
L200: 3 | M200: IEC 63 1500 rpm 0,18 kW | O200: 1360 | P200: 0.18 | Q200: 1.3 | R200: 0.00025
L201: 4 | M201: IEC 63 with brake 1500 rpm 0,18 kW | O201: 1360 | P201: 0.18 | Q201: 1.3 | R201: 0.00035
L202: 5 | M202: IEC71 3000 rpm 0,55 kW | O202: 2760 | P202: 0.55 | Q202: 1.9 | R202: 0.00042
L203: 6 | M203: IEC71 with brake 3000 rpm 0,55 kW | O203: 2760 | P203: 0.55 | Q203: 1.9 | R203: 0.00049
L204: 7 | M204: IEC71 1500 rpm 0,37 kW | O204: 1370 | P204: 0.37 | Q204: 2.6 | R204: 0.00081
L205: 8 | M205: IEC71 with brake 1500 rpm 0,37 kW | O205: 1370 | P205: 0.37 | Q205: 2.6 | R205: 0.00094
L206: 9 | M206: IEC80 3000 rpm 1,1 kW | O206: 2840 | P206: 1.1 | Q206: 3.8 | R206: 0.00098
L207: 10 | M207: IEC80 with brake 3000 rpm 1,1 kW | O207: 2840 | P207: 1.1 | Q207: 3.8 | R207: =0.000061+R206 -> 0.001041
L208: 11 | M208: IEC80 1500 rpm 0,75 kW | O208: 1380 | P208: 0.75 | Q208: 5.3 | R208: 0.001874
L209: 12 | M209: IEC80 with brake 1500 rpm 0,75 kW | O209: 1380 | P209: 0.75 | Q209: 5.3 | R209: =0.000061+R208 -> 0.001935
L210: 13 | M210: IEC90 3000 rpm 2,2 kW | O210: 2860 | P210: 2.2 | Q210: 7.3 | R210: 0.00161
L211: 14 | M211: IEC90 with brake 3000 rpm 2,2 kW | O211: 2850 | P211: 2.2 | Q211: 7.5 | R211: =0.0002+R210 -> 0.00181
L212: 15 | M212: IEC90 1500 rpm 1,5 kW | O212: 1420 | P212: 1.5 | Q212: 10.3 | R212: 0.00280
L213: 16 | M213: IEC90 with brake 1500 rpm 1,5 kW | O213: 1420 | P213: 1.5 | Q213: 10.3 | R213: 0.00410
L214: 17 | M214: IEC100 3000 rpm 3 kW | O214: 2850 | P214: 3 | Q214: 9.9 | R214: 0.0032
L215: 18 | M215: IEC100 with brake 3000 rpm 3 kW | O215: 2850 | P215: 3 | Q215: 9.9 | R215: 0.00427
L216: 19 | M216: IEC100 1500 rpm 3 kW | O216: 1430 | P216: 3 | Q216: 20 | R216: 0.006
L217: 20 | M217: IEC100 with brake 1500 rpm 3 kW | O217: 1430 | P217: 3 | Q217: 20 | R217: 0.0101
L218: 21 | M218: IEC112 3000 rpm 4 kW | O218: 2890 | P218: 4 | Q218: 13.2 | R218: 0.00499
L219: 22 | M219: IEC112 with brake 3000 rpm 4 kW | O219: 2890 | P219: 4 | Q219: 13.2 | R219: 0.0083
L220: 23 | M220: IEC112 1500 rpm 4 kW | O220: 1420 | P220: 4 | Q220: 26.6 | R220: 0.01114
L221: 24 | M221: IEC112 with brake 1500 rpm 4 kW | O221: 1420 | P221: 4 | Q221: 26.6 | R221: 0.02
O224: Hold torque | P224: Inertia
M225: =VLOOKUP($L$265,$L$226:M249,M$165) -> - | N225: =VLOOKUP($L$265,$L$226:N249,N$165) -> 0 | O225: =VLOOKUP($L$265,$L$226:O249,O$165) -> - | P225: =VLOOKUP($L$265,$L$226:P249,P$165) -> -
L226: 1 | M226: KML061 | O226: 1.2 | P226: 2.4e-05
... 57 more rows

Sheet Blad2 (hidden)
B2: Customized profile | D2: Screw driven
A4: Acceleration | C4: ='Calculation SCREW'!C53 -> 0.1 | D4: m/s2 | I4: =IF((J8+J10)>H6,1,0) -> 0
A5: Deceleration | C5: =C4 -> 0.1 | D5: m/s2 | I5: =IF(I4=1,J5,C7) -> 0.2 | J5: =I9*C4 -> 0.4472135955
A6: Distance (stroke) | C6: ='Calculation SCREW'!C55 -> 2000 | D6: mm | H6: =C6/1000 -> 2
A7: Speed | C7: ='Calculation SCREW'!C52 -> 0.2 | D7: m/s
A8: Distance for acc. | C8: =1000*H8 -> 200 | D8: mm | H8: =IF(I4=0,J8,I8) -> 0.200 | I8: =H6*C5/(C5+C4) -> 1 | J8: =C4*J9*J9/2 -> 0.2
A9: Time for acc. | C9: =IF(I4=0,J9,I9) -> 2.000 | D9: s | I9: =SQRT(2*I8/C4) -> 4.472135955 | J9: =C7/C4 -> 2
A10: Distance for decel. | C10: =H10*1000 -> 200 | D10: mm | H10: =IF(I4=0,J10,I10) -> 0.200 | I10: =H6*C4/(C5+C4) -> 1 | J10: =C5*J11*J11/2 -> 0.2
A11: Time for decel. | C11: =IF(I4=0,J11,I11) -> 2.000 | D11: s | I11: =SQRT(2*I10/C5) -> 4.472135955 | J11: =C7/C5 -> 2 | K11: 0 | L11: =H8*1000 -> 200.000 | M11: =L11+H12*1000 -> 1800.000 | N11: =H6*1000 -> 2000
A12: Dist. at const speed | C12: =H12*1000 -> 1600 | D12: mm | H12: =H6-H8-H10 -> 1.600 | J12: =IF((H8+H10)>H6,"Du når ej önskad max hastighet"," ") ->  | K12: 0 | L12: =I5 -> 0.2 | M12: =L12 -> 0.2 | N12: 0
A13: Time at const speed | C13: =H12/C7 -> 8.000 | D13: s
A14: Cycle time | C14: =IF(I4=0,J14,I14) -> 12.000 | D14: s | I14: =I9+I11 -> 8.94427191 | J14: =C11+C9+C13 -> 12.000
A15: Average speed | C15: =H6/C14 -> 0.167 | D15: m/s
A17: =IF(I4=1,"You will not reach full speed"," ") -> 
A18: =IF(I4=1,"You will reach just"," ") ->  | C18: =IF(I4=1,I9*C4," ") ->  | D18: =IF(I4=1,"m/s"," ") -> 
B20: Customized profile | D20: Belt driven
A22: Acceleration | C22: ='Calculation BELT'!C53 -> 2 | D22: m/s2 | I22: =IF((J26+J28)>H24,1,0) -> 0
A23: Deceleration | C23: =C22 -> 2 | D23: m/s2 | I23: =IF(I22=1,J23,C25) -> 1.5 | J23: =I27*C22 -> 1.897366596
A24: Distance (stroke) | C24: ='Calculation BELT'!C55 -> 1800 | D24: mm | H24: =C24/1000 -> 1.8
A25: Speed | C25: ='Calculation BELT'!C52 -> 1.5 | D25: m/s
A26: Distance for acc. | C26: =1000*H26 -> 563 | D26: mm | H26: =IF(I22=0,J26,I26) -> 0.563 | I26: =H24*C23/(C23+C22) -> 0.9 | J26: =C22*J27*J27/2 -> 0.5625
A27: Time for acc. | C27: =IF(I22=0,J27,I27) -> 0.750 | D27: s | I27: =SQRT(2*I26/C22) -> 0.9486832981 | J27: =C25/C22 -> 0.75
A28: Distance for decel. | C28: =H28*1000 -> 563 | D28: mm | H28: =IF(I22=0,J28,I28) -> 0.563 | I28: =H24*C22/(C23+C22) -> 0.9 | J28: =C23*J29*J29/2 -> 0.5625
A29: Time for decel. | C29: =IF(I22=0,J29,I29) -> 0.750 | D29: s | I29: =SQRT(2*I28/C23) -> 0.9486832981 | J29: =C25/C23 -> 0.75 | K29: 0 | L29: =H26*1000 -> 562.500 | M29: =L29+H30*1000 -> 1237.500 | N29: =H24*1000 -> 1800
A30: Dist. at const speed | C30: =H30*1000 -> 675 | D30: mm | H30: =H24-H26-H28 -> 0.675 | J30: =IF((H26+H28)>H24,"Du når ej önskad max hastighet"," ") ->  | K30: 0 | L30: =I23 -> 1.5 | M30: =L30 -> 1.5 | N30: 0
A31: Time at const speed | C31: =H30/C25 -> 0.450 | D31: s
A32: Cycle time | C32: =IF(I22=0,J32,I32) -> 1.950 | D32: s | I32: =I27+I29 -> 1.897366596 | J32: =C29+C27+C31 -> 1.950
A33: Average speed | C33: =H24/C32 -> 0.923 | D33: m/s
A35: =IF(I22=1,"You will not reach full speed"," ") -> 
A36: =IF(I22=1,"You will reach just"," ") ->  | C36: =IF(I22=1,I27*C22," ") ->  | D36: =IF(I22=1,"m/s"," ") -> 
B37: Customized profile | D37: screw drive, un-guided WV
A39: Acceleration | C39: ='Calculation WV'!C53 -> 1.2 | D39: m/s2 | I39: =IF((J43+J45)>H41,1,0) -> 0
A40: Deceleration | C40: =C39 -> 1.2 | D40: m/s2 | I40: =IF(I39=1,J40,C42) -> 0.6 | J40: =I44*C39 -> 1.624807681
A41: Distance (stroke) | C41: ='Calculation WV'!C55 -> 2200 | D41: mm | H41: =C41/1000 -> 2.2
A42: Speed | C42: ='Calculation WV'!C52 -> 0.6 | D42: m/s
A43: Distance for acc. | C43: =1000*H43 -> 150 | D43: mm | H43: =IF(I39=0,J43,I43) -> 0.150 | I43: =H41*C40/(C40+C39) -> 1.1 | J43: =C39*J44*J44/2 -> 0.15
A44: Time for acc. | C44: =IF(I39=0,J44,I44) -> 0.500 | D44: s | I44: =SQRT(2*I43/C39) -> 1.354006401 | J44: =C42/C39 -> 0.5
A45: Distance for decel. | C45: =H45*1000 -> 150 | D45: mm | H45: =IF(I39=0,J45,I45) -> 0.150 | I45: =H41*C39/(C40+C39) -> 1.1 | J45: =C40*J46*J46/2 -> 0.15
A46: Time for decel. | C46: =IF(I39=0,J46,I46) -> 0.500 | D46: s | I46: =SQRT(2*I45/C40) -> 1.354006401 | J46: =C42/C40 -> 0.5 | K46: 0 | L46: =H43*1000 -> 150.000 | M46: =L46+H47*1000 -> 2050.000 | N46: =H41*1000 -> 2200
A47: Dist. at const speed | C47: =H47*1000 -> 1900 | D47: mm | H47: =H41-H43-H45 -> 1.900 | J47: =IF((H43+H45)>H41,"Du når ej önskad max hastighet"," ") ->  | K47: 0 | L47: =I40 -> 0.6 | M47: =L47 -> 0.6 | N47: 0
A48: Time at const speed | C48: =H47/C42 -> 3.167 | D48: s
A49: Cycle time | C49: =IF(I39=0,J49,I49) -> 4.167 | D49: s | I49: =I44+I46 -> 2.708012802 | J49: =C46+C44+C48 -> 4.167
A50: Average speed | C50: =H41/C49 -> 0.528 | D50: m/s

Sheet Calculation WV
A1: Linear unit WV | D1: Sizing & selection | I1: 2015 03 23 JHj Release 0
A2: WV60 WV80 WV120 | X2: max stroke | Z2: add length C | AB2: Fx max | AC2: Fy | AD2: Fz | AE2: Mx | AF2: My | AG2: Mz | AH2: Frd | AI2: Mta | AJ2: Speed | AK2: Acc | AM2: Carriage weight | AN2: Weight | AW2: Cx dyn ball screw | AX2: preload ball screw | AY2: preload ball bearing | BA2: Cr dyn ball bearing | BB2: Ball screw diameter | BC2: Inertia kgm² / m | BL2: #
A3: Customer | AN3: 0 stroke | AO3: 100 mm | AQ3: Lx | AR3: Ly
A4: Project | Q4: 1 | R4: =VLOOKUP($Q$4,$Q$5:R9,R10) -> WV60 | S4: =VLOOKUP($Q$4,$Q$5:S9,S10) -> Ball screw Ø20 with double ball nuts | T4: =VLOOKUP($Q$4,$Q$5:T9,T10) -> 0 | U4: =VLOOKUP($Q$4,$Q$5:U9,U10) -> 0 | V4: =VLOOKUP($Q$4,$Q$5:V9,V10) -> 0 | W4: =VLOOKUP($Q$4,$Q$5:W9,W10) -> 0.01 | X4: =VLOOKUP($Q$4,$Q$5:X9,X10) -> 11000 | Y4: =VLOOKUP($Q$4,$Q$5:Y9,Y10) -> 0 | Z4: =VLOOKUP($Q$4,$Q$5:Z9,Z10) -> 570 | AA4: =VLOOKUP($Q$4,$Q$5:AA9,AA10) -> 0 | AB4: =VLOOKUP($Q$4,$Q$5:AB9,AB10) -> 4000 | AC4: =VLOOKUP($Q$4,$Q$5:AC9,AC10)*S13 -> 0 | AD4: =VLOOKUP($Q$4,$Q$5:AD9,AD10)*S13 -> 0 | AE4: =VLOOKUP($Q$4,$Q$5:AE9,AE10) -> 0 | AF4: =VLOOKUP($Q$4,$Q$5:AF9,AF10) -> 0 | AG4: =VLOOKUP($Q$4,$Q$5:AG9,AG10) -> 0 | AH4: =VLOOKUP($Q$4,$Q$5:AH9,AH10) -> 500 | AI4: =VLOOKUP($Q$4,$Q$5:AI9,AI10) -> 35 | AJ4: =VLOOKUP($Q$4,$Q$5:AJ9,AJ10) -> 2.5 | AK4: =VLOOKUP($Q$4,$Q$5:AK9,AK10) -> 20 | AL4: =VLOOKUP($Q$4,$Q$5:AL9,AL10) -> 0 | AM4: =VLOOKUP($Q$4,$Q$5:AM9,AM10) -> 1.42 | AN4: =VLOOKUP($Q$4,$Q$5:AN9,AN10) -> 4.72 | AO4: =VLOOKUP($Q$4,$Q$5:AO9,AO10) -> 0.55 | AP4: =VLOOKUP($Q$4,$Q$5:AP9,AP10) -> 0 | AQ4: =VLOOKUP($Q$4,$Q$5:AQ9,AQ10) -> 0 | AR4: =VLOOKUP($Q$4,$Q$5:AR9,AR10) -> 0 | AS4: =VLOOKUP($Q$4,$Q$5:AS9,AS10) -> WV06D | AT4: =VLOOKUP($Q$4,$Q$5:AT9,AT10) -> 0 | AU4: =VLOOKUP($Q$4,$Q$5:AU9,AU10) -> 0 | AV4: =VLOOKUP($Q$4,$Q$5:AV9,AV10) -> 0 | AW4: =BO21 -> 11600 | AX4: =VLOOKUP($Q$4,$Q$5:AX9,AX10) -> 400 | AY4: =VLOOKUP($Q$4,$Q$5:AY9,AY10) -> 500 | AZ4: =VLOOKUP($Q$4,$Q$5:AZ9,AZ10) -> 7205 BEP | BA4: =VLOOKUP($Q$4,$Q$5:BA9,BA10) -> 20200 | BB4: =VLOOKUP($Q$4,$Q$5:BB9,BB10) -> 20 | BC4: =VLOOKUP($Q$4,$Q$5:BC9,BC10) -> 8.46e-05 | BD4: =VLOOKUP($Q$4,$Q$5:BD9,BD10) -> 0 | BE4: =VLOOKUP($Q$4,$Q$5:BE9,BE10) -> 0 | BF4: =VLOOKUP($Q$4,$Q$5:BF9,BF10) -> 0 | BG4: =VLOOKUP($Q$4,$Q$5:BG9,BG10) -> 0 | BH4: =VLOOKUP($Q$4,$Q$5:BH9,BH10) -> 0 | BI4: =VLOOKUP($Q$4,$Q$5:BI9,BI10) -> 0
A5: Date | E5: Ref: | F5: xxx | Q5: 1 | R5: WV60 | S5: Ball screw Ø20 with double ball nuts | W5: 0.01 | X5: =IF($BO$16=50,5000,11000) -> 11,000 | Z5: =AR17 -> 570 | AB5: 4000 | AC5: 0 | AD5: 0 | AE5: 0 | AF5: 0 | AG5: 0 | AH5: 500 | AI5: 35 | AJ5: 2.5 | AK5: 20 | AM5: 1.42 | AN5: 4.72 | AO5: 0.55 | AS5: WV06D | AX5: 400 | AY5: 500 | AZ5: 7205 BEP | BA5: 20200 | BB5: 20 | BC5: =8.46*10^-5 -> 8.46e-05
Q6: 2 | R6: WV80 | S6: Ball screw Ø25 with double ball nuts | W6: 0.01 | X6: =IF($BO$16=50,5000,11000) -> 11,000 | Z6: =AX17 -> 505 | AB6: 5000 | AC6: 0 | AD6: 0 | AE6: 0 | AF6: 0 | AG6: 0 | AH6: 700 | AI6: 55 | AJ6: 2.5 | AK6: 20 | AM6: 2.25 | AN6: 7.95 | AO6: 0.99 | AS6: WV08D | AX6: 500 | AY6: 700 | AZ6: 7206 BEP | BA6: 21700 | BB6: 25 | BC6: =2.25*10^-4 -> 0.000225
A7: Linear drive unit: | Q7: 3 | R7: WV120 | S7: Ball screw Ø32 with double ball nuts | W7: 0.01 | X7: =IF($BO$16=40,5000,11000) -> 11,000 | Z7: =BD17 -> 640 | AB7: =IF(BO16=40,8000,12000) -> 12000 | AC7: 0 | AD7: 0 | AE7: 0 | AF7: 0 | AG7: 0 | AH7: 1000 | AI7: 80 | AJ7: 2 | AK7: 20 | AM7: 4.75 | AN7: 18.1 | AO7: 1.94 | AS7: WV12D | AX7: 1200 | AY7: 1500 | AZ7: 7207 BEP | BA7: 34500 | BB7: 32 | BC7: =6.34*10^-4 -> 0.000634
B8: Size | Q8: 4
Q9: 5
B10: Guidings | C10: un-guided | Q10: 1 | R10: 2 | S10: 3 | T10: 4 | U10: 5 | V10: 6 | W10: 7 | X10: 8 | Y10: 9 | Z10: 10 | AA10: 11 | AB10: 12 | AC10: 13 | AD10: 14 | AE10: 15 | AF10: 16 | AG10: 17 | AH10: 18 | AI10: 19 | AJ10: 20 | AK10: 21 | AL10: 22 | AM10: 23 | AN10: 24 | AO10: 25 | AP10: 26 | AQ10: 27 | AR10: 28 | AS10: 29 | AT10: 30 | AU10: 31 | AV10: 32 | AW10: 33 | AX10: 34 | AY10: 35 | AZ10: 36 | BA10: 37 | BB10: 38 | BC10: 39 | BD10: 40 | BE10: 41 | BF10: 42 | BG10: 43 | BH10: 44 | BI10: 45
B11: Drive mechanism | C11: =S4 -> Ball screw Ø20 with double ball nuts
B12: Ball screw lead mm | S12: Carriages/unit | AD12: 1 | AE12: =VLOOKUP(AD12,AC13:AE17,3) -> 0.5
Q13: 1 | S13: =IF(Q13=3,2,1) -> 1 | U13: =VLOOKUP(Q13,Q14:U16,5) -> 0 | V13: =VLOOKUP(Q13,Q14:V16,6) -> 1.42 | W13: =VLOOKUP(Q13,Q14:W16,7) -> N | X13: 2 | Y13: =IF(X13=1,1,0) -> 0 | AC13: 1 | AD13: =IF($Q$18=2,"50 / 50"," ") ->  | AE13: 0.5
B14: Move per rev | C14: =BO16 -> 20 | D14: mm | Q14: 1 | R14: N = Single standard carriage | U14: =AQ4 -> 0 | V14: =AM4 -> 1.42 | W14: N | X14: 1 | Y14: Yes | AC14: 2 | AD14: =IF($Q$18=2,"45 / 55"," ") ->  | AE14: 0.55
B15: Repeatability | C15: =W4 -> 0.01 | D15: mm | Q15: 2 | U15: =Y4 -> 0 | V15: =IF(Q4=1,1.47,IF(Q4=2,3.43,8.67)) -> 1.47 | W15: N | X15: 2 | Y15: No | AC15: 3 | AD15: =IF($Q$18=2,"40 / 60"," ") ->  | AE15: 0.6 | AV15: Calculation of total length L tot = stroke + C | BK15: Screw lead
Q16: 3 | U16: =G18 -> 0 | V16: =2*AM4 -> 2.84 | W16: N | AC16: 4 | AD16: =IF($Q$18=2,"30 / 70"," ") ->  | AE16: 0.7 | AR16: WV60 | AX16: WV80 | BD16: WV120 | BH16: =Q4 -> 1 | BI16: WV60 | BK16: WV80 | BM16: WV120 | BN16: 2 | BO16: =VLOOKUP(BN16,BN17:BO20,2) -> 20
F17: =IF(AND(OR(Q4=2,Q4=4),Q13=2),"Long carriage not available"," ") ->  | AA17: Configuration | AC17: 5 | AD17: =IF($Q$18=2,"20 / 80"," ") ->  | AE17: 0.8 | AQ17: C = | AR17: =VLOOKUP(C19,AQ18:AR34,2) -> 570 | AW17: C = | AX17: =VLOOKUP(C19,AW18:AX32,2) -> 505 | BC17: C = | BD17: =VLOOKUP(C19,BC18:BD31,2) -> 640 | BI17: 5 | BK17: 5 | BM17: 5 | BN17: 1 | BO17: 5
E18: =IF(K22=2,"Not available"," ") ->  | Q18: 1 | R18: units | S18: =Q18-1 -> 0 | T18: 1 | W18: 1 | AA18: =IF(AND(Q18=1,T18=1),1,IF(AND(Q18=2,T18=1),2,IF(AND(Q18=1,T18=2),3,IF(AND(Q18=2,T18=2),4,"")))) -> 1 | AQ18: 0 | AR18: 430 | AW18: 0 | AX18: 395 | BC18: 0 | BD18: 465 | BI18: 20 | BK18: 10 | BM18: 10 | BN18: 2 | BO18: =IF(BH16=1,20,10) -> 20
B19: Stroke | C19: 2200 | D19: mm | F19: Total length | G19: =C19+Z4 -> 2770 | H19: mm | Q19: one single unit | T19: 1 | U19: Horizontal | W19: 1 | X19: =IF(T18=1,"Top or downward"," ") -> Top or downward | AA19: =R78 -> Horizontal mounting, single unit | AQ19: 691 | AR19: 480 | AW19: 776 | AX19: 460 | BC19: 941 | BD19: 570 | BI19: 50 | BK19: 20 | BM19: 20 | BN19: 3 | BO19: =IF(BH16>1,20,50) -> 50
C20: =IF(C19>X4,"Longer than standard. Check with plant"," ") ->  | Q20: two units in parallel | T20: 2 | U20: Vertical | W20: 2 | X20: =IF(T18=1,"Sideway"," ") -> Sideway | AQ20: 1416 | AR20: 520 | AW20: 1671 | AX20: 505 | BC20: 1861 | BD20: 640 | BK20: 50 | BM20: 40 | BN20: 4 | BO20: =IF(BH16=1," - ",IF(BH16=3,40,50)) -> -
C21: Number of units | AQ21: 2156 | AR21: 570 | AW21: 2506 | AX21: 550 | BC21: 2791 | BD21: 710 | BI21: Dynamic rating of ball screw Cx | BN21: =BN16 -> 2 | BO21: =VLOOKUP(BN21,BN22:BO25,2) -> 11600
A22: =IF(Q18=2,"Distance between linear units"," ") ->  | D22: 800 | X22: Friction factor = | Y22: 0.1 | AQ22: 2886 | AR22: 610 | AW22: 3341 | AX22: 590 | BC22: 3721 | BD22: 780 | BI22: 10500 | BK22: 12300 | BM22: 21500 | BN22: 1 | BO22: =IF($BH$16=1,BI22,IF($BH$16=3,BM22,BK22)) -> 10500
Q23: Horizontal mounting, single unit | AH23: Fx per unit | AI23: Total Fx at | AQ23: 3626 | AR23: 660 | AW23: 4176 | AX23: 635 | BC23: 4651 | BD23: 845 | BI23: 11600 | BK23: 13200 | BM23: 33400 | BN23: 2 | BO23: =IF($BH$16=1,BI23,IF($BH$16=3,BM23,BK23)) -> 11600
C24: Weight of linear drive unit/-s | D24: =Q18*(AN4+G19/100*AO4+IF(Q13=2,AL4,IF(Q13=3,1.5*AM4,AM4))) -> 21.4 | E24: kg | G24: =IF(M33=0," ",IF(C27/2000>#REF!,"OK","Too much")) ->  | AB24: Max | AH24: during acc | AI24: const. speed | AQ24: 4356 | AR24: 700 | AW24: 5016 | AX24: 680 | BC24: 5586 | BD24: 910 | BI24: 8400 | BK24: 13000 | BM24: 29700 | BN24: 3 | BO24: 8400
F25: =IF(M33=0," ","Deflection") ->  | Y25: Totally | AB25: allowed | AQ25: 5096 | AR25: 740 | AW25: 5851 | AX25: 725 | BC25: 6521 | BD25: 980 | BK25: 15400 | BM25: 14900 | BN25: 4 | BO25: 0
B26: Mounting direction | Y26: Fx = | Z26: =C42+(C49+AM4)*C53+C49*E50*10 -> 2 | AA26: N | AB26: =AB4 -> 4000 | AH26: =Z26 -> 2 | AI26: =C42+C49*E50*10 -> 0 | AQ26: 5836 | AR26: 790 | AW26: 6686 | AX26: 770 | BC26: 7451 | BD26: 1050
Y27: Fy = | Z27: =C43 -> 0 | AA27: N | AB27: =AC4 -> 0 | AQ27: 6566 | AR27: 830 | AW27: 7521 | AX27: 815 | BC27: 8381 | BD27: 1125 | BH27: Ball nut | BI27: =CONCATENATE(BB4,IF(BO16<10,0,""),BO16,"-D") -> 2020-D
Y28: Fz = | Z28: =C44+C49*10*Y13 -> 0 | AA28: N | AB28: =AD4 -> 0 | AQ28: 7336 | AR28: 880 | AW28: 8381 | AX28: 855 | BC28: 9376 | BD28: 1190
Y29: Mx = | Z29: =T26 -> 0 | AA29: Nm | AB29: =AE4 -> 0 | AQ29: 8086 | AR29: 920 | AW29: 9246 | AX29: 895 | BC29: 10301 | BD29: 1260 | BI29: Idle torque at | BJ29: 150 | BK29: 1500 | BL29: 3000 | BM29: rpm
Y30: My = | Z30: =T27 -> 0 | AA30: Nm | AB30: =AF4 -> 0 | AQ30: 8846 | AR30: 960 | AW30: 10111 | AX30: 945 | BC30: 11001 | BD30: ## | BJ30: =VLOOKUP($BI$27,$BI$31:$BL$48,2) -> 0.9 | BK30: =VLOOKUP($BI$27,$BI$31:$BL$48,3) -> 1.5 | BL30: =VLOOKUP($BI$27,$BI$31:$BL$48,4) -> 1.9 | BM30: Nm
Y31: Mz = | Z31: =T28 -> 0 | AA31: Nm | AB31: =AG4 -> 0 | AQ31: 9606 | AR31: 1010 | AW31: 11001 | AX31: ## | BC31: 15000 | BI31: 2005-D | BJ31: 0.7 | BK31: 1.3 | BL31: 1.7
G32: =IF(Q18=2,"How is the load shared?"," ") ->  | AQ32: 10356 | AR32: 1050 | AW32: 15000 | BI32: 2020-D | BJ32: 0.9 | BK32: 1.5 | BL32: 1.9
AQ33: 11001 | AR33: ## | BI33: 2050-D | BJ33: 1.1 | BK33: 1.5 | BL33: 2.1
I34: =IF(AND(Q18=2,AD12=1),"equally"," ") ->  | U34: Totally | V34: =SUM(V26:V33) -> 0.0 | W34: =SUM(W26:W33) -> 0.0 | X34: N | AQ34: 15000 | BI34: 2505-D | BJ34: 0.9 | BK34: 1.6 | BL34: 2
BI35: 2510-D | BJ35: 1.1 | BK35: 1.9 | BL35: 2.4
BI36: 2520-D | BJ36: 1.3 | BK36: 2.1 | BL36: 2.6
Q37: Horizontal mounting, 2 units | BI37: 2550-D | BJ37: 1.4 | BK37: 2.3 | BL37: 3
AB38: Max | BI38: 3205-D | BJ38: 1 | BK38: 2.1 | BL38: 2.4
Y39: Totally | AB39: allowed | AC39: % of max | BI39: 3210-D | BJ39: 1.1 | BK39: 2.2 | BL39: 2.6
Y40: Fx = | Z40: =C42+(C49+2*AM4)*C53+C49*E50*10 -> 3 | AA40: N | AB40: =2*AB4 -> 8000 | AH40: =Z40*AE12 -> 2 | AI40: =C42+C49*E50*10 -> 0 | BI40: 3220-D | BJ40: 1.4 | BK40: 2.5 | BL40: 3
Y41: Fy = | Z41: =C43 -> 0 | AA41: N | AB41: =AC4*1 -> 0 | BI41: 3240-D | BJ41: 1.5 | BK41: 2.8 | BL41: 3.5
B42: Fx = | C42: 0 | D42: N | E42: =IF(C42>AB4*Q18,"Too much"," ") ->  | Y42: Fz = | Z42: =C44+C49*10*Y13+C45/D22*1000*2 -> 0 | AA42: N | AB42: =AD4*2 -> 0
B43: Fy = | C43: 0 | D43: N | Y43: Mx = | Z43: =T40 -> 0 | AA43: Nm
B44: Fz = | C44: 0 | D44: N | Y44: My = | Z44: =T41 -> 0 | AA44: Nm | AB44: =AF4*2 -> 0
B45: Mx = | C45: 0 | D45: Nm | Y45: Mz = | Z45: =T42 -> 0 | AA45: Nm
B46: My = | C46: 0 | D46: Nm
B47: Mz = | C47: 0 | D47: Nm
M48: ABS | U48: Totally | V48: =SUM(V40:V47) -> 0.0 | W48: =SUM(W40:W47) -> 0.0 | X48: N
B49: Total mass to move | C49: 0 | D49: kg | M49: =ABS(I49) -> 0
A50: =IF(T18=1,"Coefficient of friction for external guides"," ") -> Coefficient of friction for external guides | E50: 0.01 | M50: =ABS(I50) -> 0
M51: 0 | Q51: Vertical mounting, single unit
B52: Speed | C52: 0.6 | D52: m/s | E52: =IF(C52>AJ4,"Too high speed"," ") ->  | G52: =IF(R87>3001,"Too high rpm"," ") ->  | AB52: Max
B53: Acceleration | C53: 1.2 | D53: m/s² | E53: =IF(C53>40,"Too high acceleration"," ") ->  | Y53: Totally | AB53: allowed
Y54: Fx = | Z54: =C42+(C49+AM4)*C53+C49*10+AM4*10 -> 16 | AA54: N | AB54: =AB4 -> 4000 | AH54: =Z54 -> 16 | AI54: =C42+C49*10+AM4*10 -> 14
A55: Move profile over | C55: 2200 | D55: mm stroke | F55: =IF(C55>C19,"This is longer than stroke of unit !"," ") ->  | Y55: Fy = | Z55: =C43 -> 0 | AA55: N | AB55: =AC4 -> 0
Y56: Fz = | Z56: =C44 -> 0 | AA56: N | AB56: =AD4 -> 0
A57: Time to move one direction | Y57: Mx = | Z57: =T54 -> 0 | AA57: Nm | AB57: =AE4 -> 0
C58: =Blad2!C49 -> 4.17 | D58: sec | Y58: My = | Z58: =T55 -> 0 | AA58: Nm | AB58: =AF4 -> 0
Y59: Mz = | Z59: =T56 -> 0 | AA59: Nm | AB59: =AG4 -> 0
A60: =Blad2!A17 -> 
A61: =Blad2!A18 ->  | C61: =Blad2!C18 ->  | D61: =Blad2!D18 ->  | AB61: Totally
U62: Totally | V62: =SUM(V54:V61) -> 0.0 | W62: =SUM(W54:W61) -> 0.0 | X62: N
Q64: Vertical mounting, two units
AB65: Max
Y66: Totally | AB66: allowed
Y67: Fx = | Z67: =C42+C49*10+2*AM4*10+(C49+2*AM4)*C53 -> 32 | AA67: N | AB67: =AB4*2 -> 8000 | AH67: =Z67*AE12 -> 16 | AI67: =C42+C49*10+2*AM4*10 -> 28
Y68: Fy = | Z68: =C43 -> 0 | AA68: N | AB68: =AC4 -> 0
Y69: Fz = | Z69: =C44+C45/D22*1000*2 -> 0 | AA69: N | AB69: =AD4*2 -> 0
Y70: Mx = | Z70: 0 | AA70: Nm
A71: =R78 -> Horizontal mounting, single unit | Y71: My = | Z71: =T68 -> 0 | AA71: Nm | AB71: =AF4*2 -> 0
Y72: Mz = | Z72: =T69 -> 0 | AA72: Nm
B73: Result: | D73: Allowed
A74: Fx = | B74: =X78 -> 2 | C74: N | D74: =Y78 -> 4000 | E74: N | F74: =IF(B74>D74,"Too much !"," ") ->  | AB74: Totally
U75: Totally | V75: =SUM(V67:V74) -> 0.0 | W75: =SUM(W67:W74) -> 0.0 | X75: N | AM75: Total Fx at const speed | AN75: Total Fx during acc
AK76: Max Fx
X77: Fx | Z77: Fy | AB77: Fz | AD77: Mx | AF77: My | AH77: Mz | AJ77: Total | AK77: one unit
R78: =VLOOKUP($AA$18,$Q$79:R84,2) -> Horizontal mounting, single unit | S78: =VLOOKUP($AA$18,$Q$79:S84,2) -> Horizontal mounting, single unit | X78: =VLOOKUP($AA$18,$Q$79:X84,8) -> 2 | Y78: =VLOOKUP($AA$18,$Q$79:Y84,9) -> 4000 | Z78: =VLOOKUP($AA$18,$Q$79:Z84,10) -> 0 | AA78: =VLOOKUP($AA$18,$Q$79:AA84,11) -> 0 | AB78: =VLOOKUP($AA$18,$Q$79:AB84,12) -> 0 | AC78: =VLOOKUP($AA$18,$Q$79:AC84,13) -> 0 | AD78: =VLOOKUP($AA$18,$Q$79:AD84,14) -> 0 | AE78: =VLOOKUP($AA$18,$Q$79:AE84,15) -> 0 | AF78: =VLOOKUP($AA$18,$Q$79:AF84,16) -> 0 | AG78: =VLOOKUP($AA$18,$Q$79:AG84,17) -> 0 | AH78: =VLOOKUP($AA$18,$Q$79:AH84,18) -> 0 | AI78: =VLOOKUP($AA$18,$Q$79:AI84,19) -> 0 | AJ78: =VLOOKUP($AA$18,$Q$79:AJ84,20)+0.001 -> 0% | AK78: =VLOOKUP($AA$18,$Q$79:AK84,21) -> 1.7 | AL78: =VLOOKUP($AA$18,$Q$79:AL84,22) -> 0.0 | AM78: =VLOOKUP($AA$18,$Q$79:AM84,23) -> 0.0 | AN78: =VLOOKUP($AA$18,$Q$79:AN84,24) -> 1.7
Q79: 1 | R79: Horizontal mounting, single unit | X79: =Z26 -> 2 | Y79: =AB26 -> 4000 | AK79: =AH26 -> 1.7 | AL79: =AF33 -> 0.0 | AM79: =AI26 -> 0.0 | AN79: =AH26 -> 1.7
Q80: 2 | R80: Horizontal mounting, 2 units | X80: =Z40 -> 3 | Y80: =AB40 -> 8000 | AK80: =AH40 -> 1.7 | AL80: =AF47 -> 0 | AM80: =AI40 -> 0.0 | AN80: =AH40*2 -> 3.4
Q81: 3 | R81: Vertical mounting, single unit | X81: =Z54 -> 16 | Y81: =AB54 -> 4000 | AK81: =AH54 -> 15.9 | AL81: =AF61 -> 0.0 | AM81: =AI54 -> 14 | AN81: =AH54 -> 15.9
B82: Designation: | C82: =CONCATENATE(AS4,"0",IF(BO16<10,0,""),BO16,IF(C19<1000,"-00",IF(C19<10000,"-0","-")),C19,IF(G19<1000,"-00",IF(G19<10000,"-0","-")),G19,"x",W13,IF(Q13<3,"-0000",-G18)) -> WV06D020-02200-02770xN-0000 | Q82: 4 | R82: Vertical mounting, two units | X82: =Z67 -> 32 | Y82: =AB67 -> 8000 | AK82: =AH67 -> 15.9 | AL82: =AF74 -> 0 | AM82: =AI67 -> 28 | AN82: =AH67*2 -> 31.8
Q83: 5
B84: Calculation of lifetime | Q84: 6
C86: Average load factor fm | D86: 1
Q87: rpm ball screw | R87: =$C$52*1000/BO16*60 -> 1800 | T87: motor speed | U87: =R87*IF(L253=1,1,D110) -> 1800 | V87: rpm
C88: Ball screw | D88: =IF(T119<100000,T119,"> 100 000") -> > 100 000 | E88: h | F88: =IF(R119>5*10^7,">50 000",R119/1000) -> >50 000 | G88: km
C89: Ball bearing drive end | D89: =IF(T122<100000,T122,"> 100 000") -> > 100 000 | E89: h | F89: =IF(R122>5*10^7,">50 000",R122/1000) -> >50 000 | G89: km
C91: number of cycles per minute | D91: 1 | F91: Duty cycle | G91: =D91*2*C58/60 -> 14% | H91: =IF(G91>1,"Not possible !"," ") -> 
C92: Working hours per day | D92: 8
C93: Working days per year | D93: 220
C95: Lifetime
D96: =IF(V119>50,"> 50",V119) -> > 50 | E96: Years | F96: Ball screw
D97: =IF(V122>50,"> 50",V122) -> > 50 | E97: Years | F97: Ball bearing drive end
AC98: =2*0.19*10^-4+1.35*10^-6 -> 3.935e-05
AC99: =2*0.78*10^-4+6.7*10^-6 -> 0.0001627
C100: Idle torque at no load | D100: =O135 -> 1.42 | E100: Nm and | F100: =R87 -> 1,800 | G100: rpm at | H100: =C52 -> 0.6 | I100: m/s | AB100: =2*4.18*10^-4+6.7*10^-6 -> 0.0008427 | AC100: =2*184*10^-6+15*10^-6 -> 0.000383
C102: Drive torque at constant speed | D102: =P145 -> 1.42 | E102: Nm and | F102: =D102*R87/9.55 -> 268 | G102: W
C103: Drive torque during acc | D103: =P146 -> 1.51 | E103: Nm and | F103: =D103*R87/9.55 -> 285 | G103: W | Y103: =IF(Q4<=2,2,IF(Q4=5,4,3)) -> 2 | AB103: kg m²
C104: System inertia | D104: =S154 -> 0.0002487296081 | E104: kg m² (excluding gear, motor etc) | AA104: =VLOOKUP(Y103,Z105:AB108,2) -> GS19 | AB104: =VLOOKUP(Y103,Z105:AB108,3) -> 3.9e-05
B105: =IF(AND(Q18=1,P146>AI4),"Too high drive torque",IF(AND(Q18=2,P146>2*AI4),"Too high drive torque"," ")) ->  | Z105: 1 | AA105: GS14 | AB105: =0.0000065 -> 6.5e-06
Y106: WM60 | Z106: 2 | AA106: GS19 | AB106: 3.9e-05
B107: Gear / Motor | Y107: WM80 | Z107: 3 | AA107: GS24 | AB107: 0.000163
Y108: WM120 | Z108: 4 | AA108: GS28 | AB108: 0.00038
C110: =IF($L$253=2,"Ratio"," ") ->  | D110: 4
C111: =IF($L$253=2,"Effiency factor"," ") ->  | D111: 95%
C112: =IF($L$253=2,"Idle torque"," ") ->  | D112: 0.1 | E112: =IF($L$253=2,"Nm"," ") -> 
C113: =IF($L$253=2,"Inertia"," ") ->  | D113: 5e-05 | E113: =IF($L$253=2,"kg m²"," ") ->  | F113: =IF(AND(L253=2,Q18=2),"Total inertia for gears and parallel shaft"," ") -> 
M116: Calculation of lifetime.
C118: =IF(OR(L257=2,L257=3),"Nominal torque",IF(L257=4,"Holding torque"," ")) -> Nominal torque | D118: =IF(L257=2,Q197,IF(L257=3,R168,IF(L257=4,O225," "))) -> 3.8 | E118: =IF(L257=2,"Nm",IF(L257=3,"Nm at max speed",IF(L257=4,"Nm"," "))) -> Nm | N118: Lh ball screw = (C / Fx)^3 x 10^6 revolutions
C119: =IF($L$257=2,"Nominal speed",IF($L$257=3,"Peak torque"," ")) -> Nominal speed | D119: =IF(L257=2,O197,IF(L257=3,S168," ")) -> 2840 | E119: =IF($L$257=2,"rpm",IF($L$257=3,"Nm"," ")) -> rpm | N119: Lifetime ball screw = | P119: =(AW4/(AK78+AX4)/D86)^3*10^6 -> 2.407994546e+10 | Q119: rev = | R119: =P119*BO16/1000 -> 481598909.1 | S119: m = | T119: =R119/C52/3600 -> 222,962 | U119: h | V119: =R119*1000/C55/2/D91/60/D92/D93 -> 1036.5
C120: =IF($L$257=2,"Nominal power",IF($L$257=3,"Max speed"," ")) -> Nominal power | D120: =IF(L257=2,P197,IF(L257=3,O168," ")) -> 1.1 | E120: =IF($L$257=2,"kW",IF($L$257=3,"rpm"," ")) -> kW | Q120: Nm
C121: =IF(L257=3,"Nominal power"," ") ->  | D121: =IF(L257=3,P168," ") ->  | E121: =IF(L257=3,"kW"," ") ->  | Q121: Nm (including ball screw inertia)
C122: =IF(L257=5,"Customer motor data:"," ") ->  | D122: Supplier, torque, power, rpm etc | N122: Lifetime ball bearing = | P122: =(BA4/(AY4+AK78)/D86)^3*10^6 -> 6.526967009e+10 | Q122: rev = | R122: =P122*BO16/1000 -> 1305393402 | S122: m = | T122: =R122/C52/3600 -> 604,349 | U122: h | V122: =R122*1000/C55/2/D91/60/D92/D93 -> 2809.5
AF124: 1
N125: Efficieny factor ball nut = | O125: 90% | AA125: Drive | AC125: motor | AF125: Guide for selection of fm factor
C126: =IF(L257=5,"Motor inertia:"," ") ->  | D126: 0.0003 | E126: =IF(L257=5,"kg m²"," ") ->  | AA126: shaft | AC126: shaft | AF126: fm = 1,0 ; The same load in both directions
Y127: Inertia | AA127: =S154 -> 0.0002487296081 | AB127: kgm² | AC127: =IF(L253=1,S154+T156+T158,(S154+T156)/D110^2/D111+T157+T158) -> 0.001267729608 | AD127: kgm² | AF127: fm = 0,89 ; Full load forward, 75% load back
B128: Required motor data | Y128: Top speed | AA128: =R87 -> 1800 | AB128: rpm | AC128: =U87 -> 1800 | AD128: rpm | AF128: fm = 0,81 ; Full load forward, 50% load back
C129: Torque at constant speed | D129: =Z147 -> 1.43 | E129: Nm | Y129: Acceleration time | AA129: =C52/C53 -> 0.5 | AB129: sec | AC129: =AA129 -> 0.5 | AD129: sec | AF129: fm = 0,8 ; Full load forward, no load back
C130: Torque during acceleration | D130: =Z148 -> 1.91 | E130: Nm | M130: =BI29 -> Idle torque at | N130: 150 | O130: 1500 | P130: 3000 | Q130: rpm | AA130: =AA127*3.14*AA128/30/AA129 -> 0.094 | AB130: Nm | AC130: =AC127*3.14*AC128/30/AC129 -> 0.478 | AD130: Nm | AF130: fm = 0,48 ; Full load 10% of the stroke forward and 20% rest of cycle
C131: Power at constant speed | D131: =D129*D133/9550 -> 0.27 | E131: kW | M131: 0 | N131: 0.9 | O131: 1.5 | P131: 1.9 | Q131: Nm
C132: Power during acceleration | D132: =D130*D133/9550 -> 0.36 | E132: kW | F132: =D133/D119*50 -> 32 | G132: =IF(L257=2,"Hz"," ") -> Hz
C133: Max speed | D133: =U87 -> 1,800 | E133: rpm | M133: Idle torque Nm | O133: =IF(R87<=150,N131,IF(AND(R87>150,R87<=1500),N131+(R87-150)/1350*(O131-N131),O131+(R87-1500)/(Q104-1500)*(P131-O131))) -> 1.42 | P133: Single unit
C134: Inertia balance | D134: =R161 -> 1.3
N135: Totally | O135: =O133*Q18 -> 1.42 | P135: Nm per application
A136: Notes:
L145: Drive torque during constant speed | P145: =O135+AM78*BO16/2/1000/O125/PI() -> 1.42
L146: Drive torque during acceleration | P146: =O135+AN78*BO16/2/1000/O125/PI()+Q18*BC4*G19/1000*PI()*R87/30/C52*C53 -> 1.51437152
V147: Motor torque during costant speed | Z147: =IF(L253=1,P145/0.99,P145/D110/D111+D112) -> 1.434343434 | AA147: Nm | AC147: Här är lite frågetecken, eller nej?
V148: Motor torque duringacceleration | Z148: =AC130+Z147 -> 1.912 | AA148: Nm including inertia and losses in gear
P149: =P146-P145 -> 0.09437151985
L151: Linear inertia from load and carries: | Q151: m x ( m/min / 2π / rpm ) ^2 = | T151: =(C49+AM4*S13*Q18)*(C52*60/2/PI()/R87)^2 -> 1.438760808e-05 | U151: kg m²
L152: Inertia ball screw | T152: =BC4*G19/1000*Q18 -> 0.000234 | U152: kg m²
S154: =SUM(T151:T152) -> 0.0002487296081
L156: Inertia coupling | T156: =AB104*Q18 -> 3.9e-05
L157: Inertia gear | T157: =IF(L253=2,D113,0) -> 0
L158: Inertia motor | T158: =IF(L257=1,0,IF(L257=2,R197,IF(L257=3,V168,IF(L257=4,P225,IF(L257=5,D126,0))))) -> 0.00098
M160: Total inertia reduced to motor shaft | S160: =(S154+T156)/IF(L253=1,1,D110^2)+T157+T158 -> 0.001267729608
M161: Inertia balance | R161: =S160/T158 -> 1.293601641
L165: 1 | M165: 2 | N165: 3 | O165: 4 | P165: 5 | Q165: 6 | R165: 7 | S165: 8 | T165: 9 | U165: 10 | V165: 11 | W165: 12 | X165: 13 | Y165: 14
M167: AKM servo motor | O167: nom rpm | P167: kW | Q167: nom Nm | R167: Nm at max rpm | S167: Peak Nm | T167: Inertia | U167: Brake inertia | W167: Nm/A | X167: mVmin | Y167: Ohm
M168: =VLOOKUP($L$265,$L$169:M192,M$165) -> AKM52G | N168: =VLOOKUP($L$265,$L$169:N192,N165) -> 0 | O168: =VLOOKUP($L$265,$L$169:O192,O165) -> 2500 | P168: =VLOOKUP($L$265,$L$169:P192,P165) -> 1.85 | Q168: =VLOOKUP($L$265,$L$169:Q192,Q165) -> 8.43 | R168: =VLOOKUP($L$265,$L$169:R192,R165) -> 7.06 | S168: =VLOOKUP($L$265,$L$169:S192,S165) -> 21.5 | T168: =VLOOKUP($L$265,$L$169:T192,T165) -> 0.00062 | U168: =VLOOKUP($L$265,$L$169:U192,U165) -> 1.7e-05 | V168: =VLOOKUP($L$265,$L$169:V192,V165) -> 0.000637 | W168: =VLOOKUP($L$265,$L$169:W192,W165) -> 1.79 | X168: =VLOOKUP($L$265,$L$169:X192,X165) -> 115 | Y168: =VLOOKUP($L$265,$L$169:Y192,Y165) -> 3.47
L169: 1 | M169: AKM31C | O169: 5000 | P169: 0.52 | Q169: 1.15 | R169: 1 | S169: 3.88 | T169: 3.3e-05 | U169: 1.2e-06 | V169: =IF($O$257=2,T169+U169,T169) -> 3.42e-05 | W169: 0.85 | X169: 54.5 | Y169: 21.4
L170: 2 | M170: AKM32C | O170: 3000 | P170: 0.58 | Q170: 2 | R170: 1.86 | S170: 6.92 | T170: 5.9e-05 | U170: 1.2e-06 | V170: 6.02e-05 | W170: 1.4 | X170: 89.8 | Y170: 23
L171: 3 | M171: AKM33E | O171: 4500 | P171: 1.1 | Q171: 2.79 | R171: 2.34 | S171: 9.96 | T171: 0.000085 | U171: 1.2e-06 | V171: 8.62e-05 | W171: 1.1 | X171: 70.6 | Y171: 8.36
L172: 4 | M172: AKM41C | O172: 3000 | P172: 0.56 | Q172: 1.95 | R172: 1.77 | S172: 6.12 | T172: 8.1e-05 | U172: 6.8e-06 | V172: 8.78e-05 | W172: 1.34 | X172: 86.3 | Y172: 21.7
L173: 5 | M173: AKM42E | O173: 3500 | P173: 1.03 | Q173: 3.42 | R173: 2.81 | S173: 11.3 | T173: 0.00015 | U173: 6.8e-06 | V173: 0.0001568 | W173: 1.26 | X173: 80.9 | Y173: 7.22
L174: 6 | M174: AKM43E | O174: 2500 | P174: 1.03 | Q174: 4.7 | R174: 3.92 | S174: 15.9 | T174: 0.00021 | U174: 6.8e-06 | V174: 0.0002168 | W174: 1.72 | X174: 111 | Y174: 8.04
L175: 7 | M175: AKM44G | O175: 4000 | P175: 1.57 | Q175: 5.88 | R175: 3.76 | S175: 20.2 | T175: 0.00027 | U175: 6.8e-06 | V175: 0.0002768 | W175: 1.19 | X175: 76.6 | Y175: 2.65
L176: 8 | M176: AKM51E | O176: 2500 | P176: 1.04 | Q176: 4.7 | R176: 3.98 | S176: 11.6 | T176: 0.00034 | U176: 1.7e-05 | V176: 0.000357 | W176: 1.72 | X176: 110 | Y176: 8.47
L177: 9 | M177: AKM52G | O177: 2500 | P177: 1.85 | Q177: 8.43 | R177: 7.06 | S177: 21.5 | T177: 0.00062 | U177: 1.7e-05 | V177: 0.000637 | W177: 1.79 | X177: 115 | Y177: 3.47
L178: 10 | M178: AKM53K | O178: 4000 | P178: 3.2 | Q178: 11.6 | R178: 7.65 | S178: 30.1 | T178: 0.00091 | U178: 1.7e-05 | V178: 0.000927 | W178: 1.24 | X178: 79.8 | Y178: 1
L179: 11 | M179: AKM54K | O179: 3500 | P179: 3.68 | Q179: 14.4 | R179: 10.05 | S179: 38.4 | T179: 0.0012 | U179: 1.7e-05 | V179: 0.001217 | W179: 1.5 | X179: 96.6 | Y179: 1.02
L180: 12 | M180: AKM62K | O180: 3500 | P180: 3.3 | Q180: 12.2 | R180: 9 | S180: 30.1 | T180: 0.0017 | U180: 6.1e-05 | V180: 0.001761 | W180: 1.28 | X180: 82.1 | Y180: 1.05
L181: 13 | M181: AKM63K | O181: 3000 | P181: 4.05 | Q181: 16.8 | R181: 12.9 | S181: 42.6 | T181: 0.0024 | U181: 6.1e-05 | V181: 0.002461 | W181: 1.71 | X181: 110 | Y181: 1.09
L182: 14 | M182: AKM64L | O182: 3000 | P182: 4.9 | Q182: 21 | R182: 15.6 | S182: 54.1 | T182: 0.0032 | U182: 6.1e-05 | V182: 0.003261 | W182: 1.66 | X182: 107 | Y182: 0.71
L183: 15 | M183: AKM65M | O183: 2500 | P183: 5.03 | Q183: 25 | R183: 19.2 | S183: 65.2 | T183: 0.004 | U183: 6.1e-05 | V183: 0.004061 | W183: 1.85 | X183: 119 | Y183: 0.68
L184: 16
L185: 17
L186: 18
L187: 19
L188: 20
L189: 21
L190: 22
L191: 23
L192: 24
M196: AC motors | O196: rpm | P196: kW | Q196: Nm | R196: Kgm2
M197: =VLOOKUP($L$265,$L$198:M221,M$165) -> IEC80 3000 rpm 1,1 kW | O197: =VLOOKUP($L$265,$L$198:O221,O$165) -> 2840 | P197: =VLOOKUP($L$265,$L$198:P221,P$165) -> 1.1 | Q197: =VLOOKUP($L$265,$L$198:Q221,Q$165) -> 3.772659155 | R197: =VLOOKUP($L$265,$L$198:R221,R$165) -> 0.00098
L198: 1 | M198: IEC 63 3000 rpm 0,25 kW | O198: 2750 | P198: 0.25 | Q198: =71620*1.36*P198/O198/10 -> 0.9 | R198: 0.00023
L199: 2 | M199: IEC 63 with brake 3000 rpm 0,25 kW | O199: 2750 | P199: 0.25 | Q199: 0.9 | R199: 0.00025
L200: 3 | M200: IEC 63 1500 rpm 0,18 kW | O200: 1360 | P200: 0.18 | Q200: 1.3 | R200: 0.00025
L201: 4 | M201: IEC 63 with brake 1500 rpm 0,18 kW | O201: 1360 | P201: 0.18 | Q201: 1.3 | R201: 0.00035
L202: 5 | M202: IEC71 3000 rpm 0,55 kW | O202: 2760 | P202: 0.55 | Q202: 1.9 | R202: 0.00042
L203: 6 | M203: IEC71 with brake 3000 rpm 0,55 kW | O203: 2760 | P203: 0.55 | Q203: 1.9 | R203: 0.00049
L204: 7 | M204: IEC71 1500 rpm 0,37 kW | O204: 1370 | P204: 0.37 | Q204: 2.6 | R204: 0.00081
L205: 8 | M205: IEC71 with brake 1500 rpm 0,37 kW | O205: 1370 | P205: 0.37 | Q205: 2.6 | R205: 0.00094
L206: 9 | M206: IEC80 3000 rpm 1,1 kW | O206: 2840 | P206: 1.1 | Q206: 3.8 | R206: 0.00098
L207: 10 | M207: IEC80 with brake 3000 rpm 1,1 kW | O207: 2840 | P207: 1.1 | Q207: 3.8 | R207: =0.000061+R206 -> 0.001041
L208: 11 | M208: IEC80 1500 rpm 0,75 kW | O208: 1380 | P208: 0.75 | Q208: 5.3 | R208: 0.001874
L209: 12 | M209: IEC80 with brake 1500 rpm 0,75 kW | O209: 1380 | P209: 0.75 | Q209: 5.3 | R209: =0.000061+R208 -> 0.001935
L210: 13 | M210: IEC90 3000 rpm 2,2 kW | O210: 2860 | P210: 2.2 | Q210: 7.3 | R210: 0.00161
L211: 14 | M211: IEC90 with brake 3000 rpm 2,2 kW | O211: 2850 | P211: 2.2 | Q211: 7.5 | R211: =0.0002+R210 -> 0.00181
L212: 15 | M212: IEC90 1500 rpm 1,5 kW | O212: 1420 | P212: 1.5 | Q212: 10.3 | R212: 0.00280
L213: 16 | M213: IEC90 with brake 1500 rpm 1,5 kW | O213: 1420 | P213: 1.5 | Q213: 10.3 | R213: 0.00410
L214: 17 | M214: IEC100 3000 rpm 3 kW | O214: 2850 | P214: 3 | Q214: 9.9 | R214: 0.0032
L215: 18 | M215: IEC100 with brake 3000 rpm 3 kW | O215: 2850 | P215: 3 | Q215: 9.9 | R215: 0.00427
L216: 19 | M216: IEC100 1500 rpm 3 kW | O216: 1430 | P216: 3 | Q216: 20 | R216: 0.006
L217: 20 | M217: IEC100 with brake 1500 rpm 3 kW | O217: 1430 | P217: 3 | Q217: 20 | R217: 0.0101
L218: 21 | M218: IEC112 3000 rpm 4 kW | O218: 2890 | P218: 4 | Q218: 13.2 | R218: 0.00499
L219: 22 | M219: IEC112 with brake 3000 rpm 4 kW | O219: 2890 | P219: 4 | Q219: 13.2 | R219: 0.0083
L220: 23 | M220: IEC112 1500 rpm 4 kW | O220: 1420 | P220: 4 | Q220: 26.6 | R220: 0.01114
L221: 24 | M221: IEC112 with brake 1500 rpm 4 kW | O221: 1420 | P221: 4 | Q221: 26.6 | R221: 0.02
O224: Hold torque | P224: Inertia
M225: =VLOOKUP($L$265,$L$226:M249,M$165) -> - | N225: =VLOOKUP($L$265,$L$226:N249,N$165) -> 0 | O225: =VLOOKUP($L$265,$L$226:O249,O$165) -> - | P225: =VLOOKUP($L$265,$L$226:P249,P$165) -> -
L226: 1 | M226: KML061 | O226: 1.2 | P226: 2.4e-05
L227: 2 | M227: KML062 | O227: 1.77 | P227: 0.000040
L228: 3 | M228: KML063 | O228: 2.47 | P228: 0.000059
L229: 4 | M229: KML091 | O229: 2.72 | P229: 0.000113
L230: 5 | M230: KML092 | O230: 5.44 | P230: 0.000219
L231: 6 | M231: KML093 | O231: 8.16 | P231: 0.000332
... 52 more rows

Sheet Information
A1: Glossary
A3: Stroke | B3: This is the max theoretical stroke of the unit.
B4: Please note that it is important to stop the
B5: movement before reaching end of stroke.
A7: Speed | B7: This is the max speed used during the stroke
A9: Acceleration | B9: Rate of speed change going from a lower to a higher speed
B10: Typically meassured in m/s2
A12: Force / Mass | B12: Example: when you push a box on the floor, you are using a force.
B13: Mass is what you normally call "weight"
B14: The friction between the rolls and the floor is the force at constant speed
B15: When you accelarate the box you will need a bigger force but this will
B16: this software take care of.
F20: Force
G22: Force
B26: If you instead lift the box, you need a force
B27: doing that but don't forget that you are also
B28: moving a mass.
B29: Both force and mass must be inserted
B30: in the calculation.
B32: Example: When you push a car, the mass is about 1000 kg but
C33: the force is perhaps just 200 N.
C34: When you lift the same car, the mass is still 1000 kg but the force is about 10 000 N
C36: Compressing a spring requires a force but the mass is close to zero.
C38: Similar examples are punching holes, extruding, pumping and locking clamps.
A42: load factor fm | B42: Very often the force to the unit is not the same all the time during the stroke.
B43: If the load is lower during some part, this is positive for the life time of ball screw
B44: and ball bearings. The requested max motor power will still be the same.
C46: Guide for selection of fm factor
C47: fm = 1,0 ;The same load in both directions
C48: fm = 0,89 ;Load forward, 75% load back
C49: fm = 0,81 ;Load forward, 50% load back
C50: fm = 0,8 ;Load forward, no load back
C51: fm = 0,63 ;Load 50% of the stroke forward and no load back
B53: This can be calculated from formulas normally found in ball bearing catalogues.
A56: Please note:
A57: Fx, Fy, Fz, Mx, My and Mz are external forces and torques and are not connected with or caused by "Total mass to move"
A58: Forces and torques towards the carriage caused by the weight of mass and accelaration of the mass are
A59: taken care of by the calculations. The orientation of the linear unit and the location of the mass are important for correct answer.
A61: If the mass is carried by external guides or by the carriage/carriages, select correct No or Yes
A64: Calculations at a unit with two carraiges, two units with each one carriage or two units with each two carriages are made as if the carriages are connected with a solid block.
F66: connecing block
A68: One unit | L68: Two units in parallel with each one carriage
J74: Two units in parallel with each two carriages

Sheet Blad3 (hidden)
A1: Glossary
A3: Stroke | B3: This is the max theoretical stroke of the unit.
B4: Please note that it is important to stop the
B5: movement before reaching end of stroke.
A7: Speed | B7: This is the max speed used during the stroke
A9: Acceleration | B9: Rate of speed change going from a lower to a higher speed
B10: Typically meassured in m/s2
A12: Force / Mass | B12: Example: when you push a box on the floor, you are using a force.
B13: Mass is what you normally call "weight"
B14: The friction between the rolls and the floor is the force at constant speed
B15: When you accelarate the box you will need a bigger force but this will
B16: this software take care of.
F20: Force
G22: Force
B26: If you instead lift the box, you need a force
B27: doing that but don't forget that you are also
B28: moving a mass.
B29: Both force and mass must be inserted
B30: in the calculation.
B32: Example: When you push a car, the mass is about 1000 kg but
C33: the force is perhaps just 200 N.
C34: When you lift the same car, the mass is still 1000 kg but the force is about 10 000 N
C36: Compressing a spring requires a force but the mass is close to zero.
C38: Similar examples are punching holes, extruding, pumping and locking clamps.
A42: load factor fm | B42: Very often the force to the unit is not the same all the time during the stroke.
B43: If the load is lower during some part, this is positive for the life time of ball screw
B44: and ball bearings. The requested max motor power will still be the same.
C46: Guide for selection of fm factor
C47: fm = 1,0 ;The same load in both directions
C48: fm = 0,89 ;Full load forward, 75% load back
C49: fm = 0,81 ;Full load forward, 50% load back
C50: fm = 0,8 ;Full load forward, no load back
C51: fm = 0,63 ;Full load 50% of the stroke forward and no load back
B53: This can be calculated from formulas normally found in ball bearing catalogues.
